{"text_format":"2","workbook":"xlsx","n_sheets":5,"sheets":["GENERAL","DISCRETE INPUT - Bits (R)","COILS - Bits (R&W)","INPUT REGISTERS - Words (R)","HOLDING REGISTERS - Words (R&W)"],"not_rendered":{"charts":0,"images":4,"macros":0,"external_links":0,"defined_names":3,"comments":0,"pivot_tables":0},"unopened":[],"bounds":{"document_bytes":16777216,"sheet_cells":100000,"run_cost":"one","rows_first":2000,"rows_last":500,"rows_between":2000,"halvings":0,"cell_chars":16384,"cell_head_chars":4096},"cells_cut":0,"cells_raw":0,"read":"whole","date_system":"1900"}

{"sheet":"GENERAL","index":0,"n_rows":46,"n_cols":8,"rows_kept":46,"cut":false,"hidden":false,"merged":[[29,2,30,2]]}
["MODBUS TABLE ORGANIZATION"]
["Starting Address of the Group Registers (Dec)","Starting Address of the Group Registers (Hex)","System Version (Release)","System Version (Build)","Group Name (Text)","Group Code (Hex)","Group Complexity (Hex)","Group Version (Hex)"]
[{"$f":"HEX2DEC(B3)","v":768},300,null,null,"Device identifier  "]
[1008,"3F0",null,null,"Input Reading - Only with F4N102 Module "]
[1016,"3F8",null,null,"Temepratures - Only with F4N106 Module "]
[1296,510,null,null,"Reset of one Pulse Couter"]
[4096,1000,null,null,"Measures"]
[4207,"106f",null,null,"Open / Close a relays of I/O Module"]
[4608,1200,null,null,"Settings"]
[5376,1500,null,null,"Max. & Min."]
[{"$f":"HEX2DEC(B11)","v":5424},1530,null,null,"Average Measured values - Scaled"]
[5504,1580,null,null,"Crest Factor - Only with F4N107 Module"]
[5888,1700,null,null,"Max. & Min."]
[8192,2000,null,null,"Standard Setup parameters (read & write 16 byte at once)"]
[8448,2100,null,null,"Programming Parameters of Module on Slot B"]
[8704,2200,null,null,"Programming Parameters of Module on Slot C"]
[8960,2300,null,null,"Programming Parameters of Module on Slot D"]
[12544,3100,null,null,"Set Relay on LOCAL or REMOTE control"]
[12800,3200,null,null,"Open / Close a relays of I/O Module"]
[14080,3700,null,null,"Real time data: bit mapped variable reading/writing"]
[20480,5000,null,null,"Request of integrated data (energy and average power)"]
[{"$f":"HEX2DEC(B22)","v":20496},5010,null,null,"Request of real time data"]
[20768,5120,null,null,"Stored data"]
[28672,7000,null,null,"Harmonics - Only with F4N107 Module"]
[]
[]
[]
["MODBUS PROTOCOL DETAILS"]
["Function Code (Dec)","Exception Codes (Dec)","Data Encoding"]
[3,"1, 2, 3","\"Big Endian\" (most significant byte first)"]
[16,"1, 2, 3"]
[]
["MODBUS OVER SERIAL DETAILS"]
["Physical Layer","Trasmission Modes","Device Addressing","Baud Rates (bit/s)","Data Bits","Data bits trasmission sequence","Parity","Stop Bits"]
["standard EIA/TIA 485 (RS-485) two-wire configuration","RTU","1÷247","programmable",8,"Least significant bit first","programmable",1]
[]
["MASTER/SLAVE COMMUNICATION TIMING"]
["Timer Descrtiption","Timer Value (msec)"]
["Inter-character time-out","Max. 20"]
["Response delay (from master request)","20÷300"]
["Delay Time (between two master trasmissions)","< 20"]
[]
["REFER ALSO TO:","www.modbus.org","- MODBUS over serial line specification and implementation guide V1.02"]
[null,null,"- MODBUS APPLICATION PROTOCOL SPECIFICATION V1.1b"]
[]
["NOTE:","File and printed copies of this document are not subject to document change control."]

{"sheet":"DISCRETE INPUT - Bits (R)","index":1,"n_rows":2,"n_cols":8,"rows_kept":2,"cut":false,"hidden":false,"merged":[]}
["Register Number","Register Address (Dec)","Register Address (Hex)","Dimension [bit]","Description","Note","Read Function Codes (Dec)","Data Storing (2)"]
[{"$nulls":4},"(no DISCRETE INPUTS availables)"]

{"sheet":"COILS - Bits (R&W)","index":2,"n_rows":2,"n_cols":9,"rows_kept":2,"cut":false,"hidden":false,"merged":[]}
["Register Number","Register Address (Dec)","Register Address (Hex)","Dimension [bit]","Description","Note","Read Function Codes (Dec)","Write Function Codes (Dec)","Data Storing (2)"]
[{"$nulls":4},"(no COILS availables)"]

{"sheet":"INPUT REGISTERS - Words (R)","index":3,"n_rows":834,"n_cols":13,"rows_kept":834,"cut":false,"hidden":false,"merged":[[782,1,782,5],[503,0,503,12],[401,0,401,12],[13,10,14,10],[707,0,707,12],[758,0,758,12],[605,0,605,12],[97,5,97,10],[299,0,299,12],[248,0,248,12],[766,3,766,4],[764,1,764,4],[781,1,781,5],[778,1,778,5],[776,3,776,4],[775,3,775,4],[774,3,774,4],[776,1,776,2],[775,1,775,2],[774,1,774,2],[779,1,779,5],[780,1,780,5],[783,1,783,5],[784,1,784,5],[785,1,785,5],[760,1,760,4],[773,1,773,4],[772,1,772,4],[777,1,777,5],[765,3,765,4],[763,3,763,4],[762,3,762,4],[761,3,761,4],[771,3,771,4],[770,3,770,4],[769,3,769,4],[768,3,768,4],[767,3,767,4],[786,1,786,2],[786,3,786,5],[788,1,788,2],[788,3,788,5],[787,1,787,5],[794,1,794,5],[795,1,795,2],[795,3,795,5],[789,1,789,5],[790,1,790,5],[791,1,791,5],[792,1,792,5],[793,1,793,2],[793,3,793,5],[816,2,816,4],[815,2,815,4],[814,2,814,4],[813,2,813,4],[819,2,819,4],[818,2,818,4],[796,1,796,5],[832,2,832,4],[831,2,831,4],[830,2,830,4],[829,2,829,4],[828,2,828,4],[827,2,827,4],[826,2,826,4],[825,2,825,4],[824,2,824,4],[823,2,823,4],[822,2,822,4],[821,2,821,4],[820,2,820,4],[802,2,802,4],[801,2,801,4],[797,2,797,4],[833,1,833,5],[807,2,807,4],[806,2,806,4],[805,2,805,4],[804,2,804,4],[803,2,803,4],[812,2,812,4],[811,2,811,4],[810,2,810,4],[809,2,809,4],[808,2,808,4],[800,2,800,4],[799,2,799,4],[798,2,798,4],[817,2,817,4]]}
["Register Number","Register Address (Dec)","Register Address (Hex)","Dimension [word]","Bit Position","Description","Type","Scale","Unit","Range","Note","Read Function Code (Dec)","Data Storing (2)"]
[{"$f":"B2+1","v":769},{"$f":"GENERAL!A3","v":768},{"$f":"GENERAL!B3","v":300},{"$f":"SUM(D3:D3)","v":1},null,{"$f":"GENERAL!E3","v":"Device identifier  "}]
[{"$f":"B3+1","v":769},768,{"$f":"DEC2HEX(B3)","v":"300"},1,null,"Device identifier","unsigned integer",1,"-",null,"The device returns 1101h",{"$f":"3","v":3}]
[{"$f":"B4+1","v":1009},{"$f":"GENERAL!A4","v":1008},{"$f":"GENERAL!B4","v":"3F0"},{"$f":"SUM(D5:D5)","v":2},null,{"$f":"GENERAL!E4","v":"Input Reading - Only with F4N102 Module "}]
[{"$f":"B5+1","v":1009},1008,{"$f":"DEC2HEX(B5)","v":"3F0"},2,null,"Pulse counting on Input 1 on Slot C","unsigned integer",1,"-",null,null,{"$f":"3","v":3}]
[{"$f":"B6+1","v":1013},1012,"3F4",2,null,"Pulse counting on Input 2 on Slot C","unsigned integer",1,"-",null,null,{"$f":"3","v":3}]
[1017,1016,"3F8",2,null,"Pulse counting on Input 1 on Slot D","unsigned integer",1,"-",null,null,{"$f":"3","v":3}]
[1021,1020,"3FC",2,null,"Pulse counting on Input 2 on Slot D","unsigned integer",1,"-",null,null,{"$f":"3","v":3}]
[1025,1024,"400",1,null,"State of Input 1  on Slot C","unsigned integer",1,"-","0, 1","0: open, 1: close",{"$f":"3","v":3}]
[1026,{"$f":"B9+D9","v":1025},"401",1,null,"State of Input 2 on Slot C","unsigned integer",1,"-","0, 1","0: open, 1: close",{"$f":"3","v":3}]
[1027,{"$f":"B10+D10","v":1026},"402",1,null,"State of Input 1 on Slot D","unsigned integer",1,"-","0, 1","0: open, 1: close",{"$f":"3","v":3}]
[1028,1027,"403",1,null,"State of Input 2 on Slot D","unsigned integer",1,"-","0, 1","0: open, 1: close",{"$f":"3","v":3}]
[{"$f":"B13+1","v":1017},{"$f":"GENERAL!A5","v":1016},{"$f":"GENERAL!B5","v":"3F8"},{"$f":"SUM(D14:D14)","v":2},null,{"$f":"GENERAL!E5","v":"Temepratures - Only with F4N106 Module "}]
[{"$f":"B14+1","v":1017},1016,{"$f":"DEC2HEX(B14)","v":"3F8"},2,null,"Temeprature Channel 1","unsigned integer",0.01,"°C",null,"If Pt100 sensor is not present\nthe device answers 9C40h",{"$f":"3","v":3}]
[{"$f":"B15+1","v":1021},1020,{"$f":"DEC2HEX(B15)","v":"3FC"},2,null,"Temeprature Channel 2","unsigned integer",0.01,"°C",null,null,{"$f":"3","v":3}]
[1027,1026,"402",1,null,"Sign of Temperature Ch 1","unsigned integer",1,"-","0, 1","0: positive, 1: negative",{"$f":"3","v":3}]
[1028,1027,"403",1,null,"Sign of Temperature Ch 2","unsigned integer",1,"-","0, 1","0: positive, 1: negative",{"$f":"3","v":3}]
[{"$f":"B18+1","v":4097},{"$f":"GENERAL!A7","v":4096},{"$f":"GENERAL!B7","v":1000},{"$f":"SUM(D19:D93)","v":124},null,{"$f":"GENERAL!E7","v":"Measures"}]
[{"$f":"B19+1","v":4097},{"$f":"B18","v":4096},{"$f":"DEC2HEX(B19)","v":"1000"},2,null,"Phase 1 : phase voltage","unsigned integer",1,"mV",null,null,{"$f":"3","v":3}]
[{"$f":"B20+1","v":4099},{"$f":"B19+D19","v":4098},"1002",2,null,"Phase 2 : phase voltage","unsigned integer",1,"mV",null,null,{"$f":"3","v":3}]
[4101,{"$f":"B20+D20","v":4100},"1004",2,null,"Phase 3 : phase voltage","unsigned integer",1,"mV",null,null,{"$f":"3","v":3}]
[4103,4102,"1006",2,null,"Phase 1 : current","unsigned integer",1,"mA",null,null,{"$f":"3","v":3}]
[4105,4104,"1008",2,null,"Phase 2 : current","unsigned integer",1,"mA",null,null,{"$f":"3","v":3}]
[4107,4106,"100A",2,null,"Phase 3 : current","unsigned integer",1,"mA",null,null,{"$f":"3","v":3}]
[4109,4108,"100C",2,null,"Neutral current","unsigned integer",1,"mA",null,null,{"$f":"3","v":3}]
[4111,{"$f":"B25+D25","v":4110},"100E",2,null,"Chained voltage : L1-L2","unsigned integer",1,"mV",null,null,{"$f":"3","v":3}]
[4113,4112,"1010",2,null,"Chained voltage : L2-L3","unsigned integer",1,"mV",null,null,{"$f":"3","v":3}]
[4115,4114,"1012",2,null,"Chained voltage : L3-L1","unsigned integer",1,"mV",null,null,{"$f":"3","v":3}]
[4117,4116,"1014",2,null,"3-phase : active power","unsigned integer","1, 0.01","W",null,"See Note 1",{"$f":"3","v":3}]
[4119,4118,"1016",2,null,"3-phase : reactive power","unsigned integer","1, 0.01","var",null,"See Note 1",{"$f":"3","v":3}]
[4121,4120,"1018",2,null,"3-phase : apparent power","unsigned integer","1, 0.01","VA",null,"See Note 1",{"$f":"3","v":3}]
[4123,4122,"101A",1,null,"3-phase : sign of active power","unsigned integer",1,"-","0, 1","0=positive, 1=negative",{"$f":"3","v":3}]
[4124,4123,"101B",1,null,"3-phase : sign of reactive power","unsigned integer",1,"-","0, 1","0=positive, 1=negative",{"$f":"3","v":3}]
[4125,4124,"101C",2,null,"3-phase : positive active energy","unsigned integer","1, 10, 100, 1.000, 10.000, 100.000","Wh",null,"See Note 2",{"$f":"3","v":3},"Y"]
[4127,4126,"101E",2,null,"3-phase : positive reactive energy","unsigned integer","1, 10, 100, 1.000, 10.000, 100.000","varh",null,"See Note 2",{"$f":"3","v":3},"Y"]
[4129,4128,"1020",2,null,"3-phase : negative active energy","unsigned integer","1, 10, 100, 1.000, 10.000, 100.000","Wh",null,"See Note 2",{"$f":"3","v":3},"Y"]
[4131,4130,"1022",2,null,"3-phase : negative reactive energy","unsigned integer","1, 10, 100, 1.000, 10.000, 100.000","varh",null,"See Note 2",{"$f":"3","v":3},"Y"]
[4133,4132,"1024",1,null,"3-phase : power factor","signed integer",0.01,"-",null,null,{"$f":"3","v":3}]
[4134,4133,"1025",1,null,"3-phase : sector of power factor (cap or ind)","unsigned integer",1,"-","0, 1, 2","0=\"PF=1\", 1=\"ind\" (L), 2=\"cap\" (C)",{"$f":"3","v":3}]
[4135,4134,"1026",1,null,"Frequency","unsigned integer",0.1,"Hz",null,null,{"$f":"3","v":3}]
[4136,4135,"1027",2,null,"3-phase : average power","unsigned integer","1, 0.01","W",null,"See Note 1",{"$f":"3","v":3}]
[4138,4137,"1029",2,null,"3-phase : peak maximum demand","unsigned integer","1, 0.01","W",null,"See Note 1",{"$f":"3","v":3},"Y"]
[4140,4139,"102B",1,null,"Time counter for average power","unsigned integer",1,"min",null,null,{"$f":"3","v":3}]
[4141,4140,"102C",2,null,"Phase 1 : active power","unsigned integer","1, 0.01","W",null,"See Note 1",{"$f":"3","v":3}]
[4143,4142,"102E",2,null,"Phase 2 : active power","unsigned integer","1, 0.01","W",null,"See Note 1",{"$f":"3","v":3}]
[4145,4144,"1030",2,null,"Phase 3 : active power","unsigned integer","1, 0.01","W",null,"See Note 1",{"$f":"3","v":3}]
[4147,4146,"1032",1,null,"Phase 1 : sign of active power","unsigned integer",null,"-","0, 1","0=positive, 1=negative",{"$f":"3","v":3}]
[4148,4147,"1033",1,null,"Phase 2 : sign of active power","unsigned integer",null,"-","0, 1","0=positive, 1=negative",{"$f":"3","v":3}]
[4149,4148,"1034",1,null,"Phase 3 : sign of active power","unsigned integer",null,"-","0, 1","0=positive, 1=negative",{"$f":"3","v":3}]
[4150,4149,"1035",2,null,"Phase 1 : reactive power","unsigned integer","1, 0.01","var",null,"See Note 1",{"$f":"3","v":3}]
[4152,4151,"1037",2,null,"Phase 2 : reactive power","unsigned integer","1, 0.01","var",null,"See Note 1",{"$f":"3","v":3}]
[4154,4153,"1039",2,null,"Phase 3 : reactive power","unsigned integer","1, 0.01","var",null,"See Note 1",{"$f":"3","v":3}]
[4156,4155,"103B",1,null,"Phase 1 : sign of reactive power","unsigned integer",null,"-","0, 1","0=positive, 1=negative",{"$f":"3","v":3}]
[4157,4156,"103C",1,null,"Phase 2 : sign of reactive power","unsigned integer",null,"-","0, 1","0=positive, 1=negative",{"$f":"3","v":3}]
[4158,4157,"103D",1,null,"Phase 3 : sign of reactive power","unsigned integer",null,"-","0, 1","0=positive, 1=negative",{"$f":"3","v":3}]
[{"$f":"B56+1","v":4159},{"$f":"B55+D55","v":4158},{"$f":"DEC2HEX(B56)","v":"103E"},2,null,"Phase 1 : apparent power","unsigned integer","1, 0.01","VA",null,"See Note 1",{"$f":"3","v":3}]
[4161,4160,"1040",2,null,"Phase 2 : apparent power","unsigned integer","1, 0.01","VA",null,"See Note 1",{"$f":"3","v":3}]
[4163,4162,"1042",2,null,"Phase 3 : apparent power","unsigned integer","1, 0.01","VA",null,"See Note 1",{"$f":"3","v":3}]
[{"$f":"B59+1","v":4165},{"$f":"B58+D58","v":4164},{"$f":"DEC2HEX(B59)","v":"1044"},1,null,"Phase 1 : power factor","signed integer",0.01,"-",null,null,{"$f":"3","v":3}]
[4166,4165,"1045",1,null,"Phase 2 : power factor","signed integer",0.01,"-",null,null,{"$f":"3","v":3}]
[4167,4166,"1046",1,null,"Phase 3 : power factor","signed integer",0.01,"-",null,null,{"$f":"3","v":3}]
[{"$f":"B62+1","v":4168},{"$f":"B61+D61","v":4167},{"$f":"DEC2HEX(B62)","v":"1047"},1,null,"Phase 1 : sector of power factor (cap or ind)","unsigned integer",1,"-","0, 1, 2","0=\"PF=1\", 1=\"ind\" (L), 2=\"cap\" (C)",{"$f":"3","v":3}]
[4169,4168,"1048",1,null,"Phase 2 : sector of power factor (cap or ind)","unsigned integer",1,"-","0, 1, 2","0=\"PF=1\", 1=\"ind\" (L), 2=\"cap\" (C)",{"$f":"3","v":3}]
[4170,4169,"1049",1,null,"Phase 3 : sector of power factor (cap or ind)","unsigned integer",1,"-","0, 1, 2","0=\"PF=1\", 1=\"ind\" (L), 2=\"cap\" (C)",{"$f":"3","v":3}]
[{"$f":"B65+1","v":4171},{"$f":"B64+D64","v":4170},{"$f":"DEC2HEX(B65)","v":"104A"},1,null,"Phase 1 : THD V1","unsigned integer",0.1,"%",null,"See Note 3",{"$f":"3","v":3}]
[{"$f":"B66+1","v":4172},{"$f":"B65+D65","v":4171},{"$f":"DEC2HEX(B66)","v":"104B"},1,null,"Phase 2 : THD V2","unsigned integer",0.1,"%",null,"See Note 3",{"$f":"3","v":3}]
[4173,4172,"104C",1,null,"Phase 3 : THD V3","unsigned integer",0.1,"%",null,"See Note 3",{"$f":"3","v":3}]
[4174,4173,"104D",1,null,"Phase 1 : THD I1","unsigned integer",0.1,"%",null,null,{"$f":"3","v":3}]
[4175,4174,"104E",1,null,"Phase 2 : THD I2","unsigned integer",0.1,"%",null,null,{"$f":"3","v":3}]
[4176,4175,"104F",1,null,"Phase 3 : THD I3","unsigned integer",0.1,"%",null,null,{"$f":"3","v":3}]
[4177,4176,"1050",2,null,"Phase 1 : I1 average ","unsigned integer",1,"mA",null,null,{"$f":"3","v":3}]
[{"$f":"B72+1","v":4179},{"$f":"B71+D71","v":4178},{"$f":"DEC2HEX(B72)","v":"1052"},2,null,"Phase 2 : I2 average ","unsigned integer",1,"mA",null,null,{"$f":"3","v":3}]
[4181,4180,"1054",2,null,"Phase 3 : I3 average ","unsigned integer",1,"mA",null,null,{"$f":"3","v":3}]
[4183,4182,"1056",2,null,"Phase 1 : I1 peak Max.","unsigned integer",1,"mA",null,null,{"$f":"3","v":3}]
[{"$f":"B75+1","v":4185},{"$f":"B74+D74","v":4184},{"$f":"DEC2HEX(B75)","v":"1058"},2,null,"Phase 2 : I2 peak Max.","unsigned integer",1,"mA",null,null,{"$f":"3","v":3}]
[4187,4186,"105A",2,null,"Phase 3 : I3 peak Max.","unsigned integer",1,"mA",null,null,{"$f":"3","v":3}]
[{"$f":"B77+1","v":4189},{"$f":"B76+D76","v":4188},{"$f":"DEC2HEX(B77)","v":"105C"},2,null,"3-phase : I average","unsigned integer",1,"mA",null,"(I1+I2+I3)/3",{"$f":"3","v":3}]
[4191,4190,"105E",2,null,"Phase 1 : V1 min.","unsigned integer",1,"mV",null,"See Note 3",{"$f":"3","v":3}]
[4193,4192,"1060",2,null,"Phase 2 : V2 min.","unsigned integer",1,"mV",null,"See Note 3",{"$f":"3","v":3}]
[4195,4194,"1062",2,null,"Phase 3 : V3 min.","unsigned integer",1,"mV",null,"See Note 3",{"$f":"3","v":3}]
[{"$f":"B81+1","v":4197},{"$f":"B80+D80","v":4196},{"$f":"DEC2HEX(B81)","v":"1064"},2,null,"Phase 1 : V1 Max.","unsigned integer",1,"mV",null,"See Note 3",{"$f":"3","v":3}]
[4199,4198,"1066",2,null,"Phase 2 : V2 Max.","unsigned integer",1,"mV",null,"See Note 3",{"$f":"3","v":3}]
[4201,4200,"1068",2,null,"Phase 3 : V3 Max.","unsigned integer",1,"mV",null,"See Note 3",{"$f":"3","v":3}]
[{"$f":"B84+1","v":4203},{"$f":"B83+D83","v":4202},{"$f":"DEC2HEX(B84)","v":"106A"},2,null,"3-phase : partial active energy","unsigned integer","1, 10, 100, 1000, 10.000, 100.000","Wh",null,"See Note 2",{"$f":"3","v":3}]
[4205,4204,"106C",2,null,"3-phase : partial reactive energy","unsigned integer","1, 10, 100, 1000, 10.000, 100.000","varh",null,"See Note 2",{"$f":"3","v":3}]
[{"$f":"B86+1","v":4207},{"$f":"B85+D85","v":4206},{"$f":"DEC2HEX(B86)","v":"106E"},1,null,"Operating timer counter","unsigned integer",1,"h",null,null,{"$f":"3","v":3}]
[{"$f":"B87+1","v":4208},{"$f":"B86+D86","v":4207},{"$f":"DEC2HEX(B87)","v":"106F"},1,null,"Output status ","unsigned integer","-","-",null,"if  module(s) is (are) installed\n See Note 4",{"$f":"3","v":3}]
[4209,4208,"1070",2,null,"3-phase : average active power","unsigned integer","1, 0.01","W",null,"See Note 1",{"$f":"3","v":3}]
[4211,4210,"1072",2,null,"3-phase : average reactive power","unsigned integer","1, 0.01","var",null,"See Note 1",{"$f":"3","v":3}]
[4213,4212,"1074",2,null,"3-phase : average apparent power","unsigned integer","1, 0.01","VA",null,"See Note 1",{"$f":"3","v":3}]
[{"$f":"B91+1","v":4215},{"$f":"B90+D90","v":4214},{"$f":"DEC2HEX(B91)","v":"1076"},2,null,"3-phase : active PMD power","unsigned integer","1, 0.01","W",null,"See Note 1",{"$f":"3","v":3}]
[4217,4216,"1078",2,null,"3-phase : reactive PMD power","unsigned integer","1, 0.01","var",null,"See Note 1",{"$f":"3","v":3}]
[4219,4218,"107A",2,null,"3-phase : apparent PMD power","unsigned integer","1, 0.01","VA",null,"See Note 1",{"$f":"3","v":3}]
[{"$f":"B94+1","v":4609},{"$f":"GENERAL!A9","v":4608},{"$f":"GENERAL!B9","v":1200},{"$f":"SUM(D95:D99)","v":6},null,{"$f":"GENERAL!E9","v":"Settings"}]
[{"$f":"B95+1","v":4609},4608,{"$f":"DEC2HEX(B95)","v":"1200"},1,null,"Current transformer ratio (CT)","unsigned integer",1,"-",null,null,{"$f":"3","v":3},"Y"]
[{"$f":"B96+1","v":4610},{"$f":"B95+D95","v":4609},{"$f":"DEC2HEX(B96)","v":"1201"},1,null,"Voltage transformer ratio (VT)","unsigned integer",0.01,"-",null,null,{"$f":"3","v":3},"Y"]
[{"$f":"B97+1","v":4611},{"$f":"B96+D96","v":4610},{"$f":"DEC2HEX(B97)","v":"1202"},2,null,"Device Configuration","unsigned integer","-","-",null,"See Note 5",{"$f":"3","v":3},"Y"]
[{"$f":"B98+1","v":4613},{"$f":"B97+D97","v":4612},{"$f":"DEC2HEX(B98)","v":"1204"},1,null,"RESERVED (returns 0000h)",{"$nulls":5},{"$f":"3","v":3}]
[4614,4613,"1205",1,null,"Voltages sequence diagnostic","unsigned integer",1,"-","0, 1, 2","0: if single phase insertion\n1: Ok\n2: Error",3]
[{"$f":"B100+1","v":5377},{"$f":"GENERAL!A10","v":5376},{"$f":"GENERAL!B10","v":1500},{"$f":"SUM(D101:D124)","v":48},null,{"$f":"GENERAL!E10","v":"Max. & Min."}]
[{"$f":"B101+1","v":5377},5376,1500,2,null,"Low Positive Active Energy ","unsigned integer",{"$f":"1","v":1},"Wh",null,null,{"$f":"3","v":3}]
[{"$f":"B102+1","v":5379},{"$f":"B101+D101","v":5378},{"$f":"DEC2HEX(B102)","v":"1502"},2,null,"High Positive Active Energy","unsigned integer",{"$f":"1","v":1},"MWh",null,null,{"$f":"3","v":3}]
[{"$f":"B103+1","v":5381},{"$f":"B102+D102","v":5380},{"$f":"DEC2HEX(B103)","v":"1504"},2,null,"Low Positive Reactive Energy ","unsigned integer",{"$f":"1","v":1},"varh",null,null,{"$f":"3","v":3}]
[5383,5382,"1506",2,null,"High Positive Reactive Energy","unsigned integer",{"$f":"1","v":1},"Mvarh",null,null,{"$f":"3","v":3}]
[5385,5384,"1508",2,null,"Low Negative Active Energy ","unsigned integer",{"$f":"1","v":1},"Wh",null,null,{"$f":"3","v":3}]
[5387,5386,"150A",2,null,"High Negative Active Energy","unsigned integer",{"$f":"1","v":1},"MWh",null,null,{"$f":"3","v":3}]
[5389,5388,"150C",2,null,"Low Negative Reactive Energy ","unsigned integer",{"$f":"1","v":1},"varh",null,null,{"$f":"3","v":3}]
[5391,5390,"150E",2,null,"High Negative Reactive Energy","unsigned integer",{"$f":"1","v":1},"Mvarh",null,null,{"$f":"3","v":3}]
[5393,5392,"1510",2,null,"Low Partial Active Energy ","unsigned integer",{"$f":"1","v":1},"Wh",null,null,{"$f":"3","v":3}]
[5395,5394,"1512",2,null,"High Partial Active Energy","unsigned integer",{"$f":"1","v":1},"MWh",null,null,{"$f":"3","v":3}]
[5397,5396,"1514",2,null,"Low Partial Reactive Energy","unsigned integer",{"$f":"1","v":1},"varh",null,null,{"$f":"3","v":3}]
[5399,5398,"1516",2,null,"High Partial Reactive Energy","unsigned integer",{"$f":"1","v":1},"Mvarh",null,null,{"$f":"3","v":3}]
[5401,5400,"1518",2,null,"Signed Total active power","signed integer",1,"W",null,null,{"$f":"3","v":3}]
[5403,5402,"151A",2,null,"Signed Total reactive power","signed integer",1,"var",null,null,{"$f":"3","v":3}]
[5405,5404,"151C",2,null,"Signed phase1 active power","signed integer",1,"W",null,null,{"$f":"3","v":3}]
[5407,5406,"151E",2,null,"Signed phase2 active power","signed integer",1,"W",null,null,{"$f":"3","v":3}]
[{"$f":"B117+1","v":5409},{"$f":"B116+D116","v":5408},{"$f":"DEC2HEX(B117)","v":"1520"},2,null,"Signed phase3 active power","signed integer",1,"W",null,null,{"$f":"3","v":3}]
[{"$f":"B118+1","v":5411},{"$f":"B117+D117","v":5410},{"$f":"DEC2HEX(B118)","v":"1522"},2,null,"Signed phase1 reactive power","signed integer",1,"Var",null,null,{"$f":"3","v":3}]
[5413,5412,"1524",2,null,"Signed phase2 reactive power","signed integer",1,"Var",null,null,{"$f":"3","v":3}]
[5415,5414,"1526",2,null,"Signed phase3 reactive power","signed integer",1,"var",null,null,{"$f":"3","v":3}]
[5417,5416,"1528",2,null,"Signed total Power Factor","signed integer",1E-3,"-",null,null,{"$f":"3","v":3}]
[5419,5418,"152A",2,null,"Signed phase1 Power Factor","signed integer",1E-3,"-",null,null,{"$f":"3","v":3}]
[5421,5420,"152C",2,null,"Signed phase2 Power Factor","signed integer",1E-3,"-",null,null,{"$f":"3","v":3}]
[5423,5422,"152E",2,null,"Signed phase3 Power Factor","signed integer",1E-3,"-",null,null,{"$f":"3","v":3}]
[{"$f":"B125+1","v":5425},{"$f":"GENERAL!A11","v":5424},{"$f":"GENERAL!B11","v":1530},{"$f":"SUM(D126:D132)","v":14},null,{"$f":"GENERAL!E11","v":"Average Measured values - Scaled"}]
[{"$f":"B126+1","v":5425},5424,{"$f":"DEC2HEX(B126)","v":"1530"},2,null," Total Apparent power","unsigned integer",{"$f":"1","v":1},"VA",null,null,{"$f":"3","v":3}]
[5427,{"$f":"B126+D126","v":5426},"1532",2,null,"3-phase : average active power","unsigned integer",0.01,"W",null,null,{"$f":"3","v":3}]
[5429,5428,"1534",2,null,"3-phase : average reactive power","unsigned integer",0.01,"var",null,null,{"$f":"3","v":3}]
[5431,5430,"1536",2,null,"3-phase : average apparent power","unsigned integer",0.01,"VA",null,null,{"$f":"3","v":3}]
[{"$f":"B130+1","v":5433},{"$f":"B129+D129","v":5432},{"$f":"DEC2HEX(B130)","v":"1538"},2,null,"3-phase : max active power","unsigned integer",0.01,"W",null,null,{"$f":"3","v":3}]
[5435,5434,"153A",2,null,"3-phase : max reactive power","unsigned integer",0.01,"var",null,null,{"$f":"3","v":3}]
[5437,5436,"153C",2,null,"3-phase : max apparent power ","unsigned integer",0.01,"VA",null,null,{"$f":"3","v":3}]
[{"$f":"B133+1","v":5505},{"$f":"GENERAL!A12","v":5504},{"$f":"GENERAL!B12","v":1580},{"$f":"SUM(D134:D142)","v":9},null,{"$f":"GENERAL!E12","v":"Crest Factor - Only with F4N107 Module"}]
[5505,5504,{"$f":"DEC2HEX(B134)","v":"1580"},1,null," Phase1 voltage crest factor","unsigned integer",1E-3,"-",null,null,{"$f":"3","v":3}]
[{"$f":"B135+1","v":5506},{"$f":"B134+D134","v":5505},{"$f":"DEC2HEX(B135)","v":"1581"},1,null," Phase2 voltage crest factor","unsigned integer",1E-3,"-",null,null,{"$f":"3","v":3}]
[5507,5506,"1582",1,null," Phase3 voltage crest factor","unsigned integer",1E-3,"-",null,null,{"$f":"3","v":3}]
[5508,5507,"1583",1,null," Phase1 current crest factor","unsigned integer",1E-3,"-",null,null,{"$f":"3","v":3}]
[5509,5508,"1584",1,null," Phase2 current crest factor","unsigned integer",1E-3,"-",null,null,{"$f":"3","v":3}]
[5510,5509,"1585",1,null," Phase3 current crest factor","unsigned integer",1E-3,"-",null,null,{"$f":"3","v":3}]
[5511,5510,"1586",1,null," Phase1-2 voltage crest factor","unsigned integer",1E-3,"-",null,null,{"$f":"3","v":3}]
[5512,5511,"1587",1,null," Phase2-3 voltage crest factor","unsigned integer",1E-3,"-",null,null,{"$f":"3","v":3}]
[{"$f":"B142+1","v":5513},{"$f":"B141+D141","v":5512},{"$f":"DEC2HEX(B142)","v":"1588"},1,null," Phase3-1 voltage crest factor","unsigned integer",1E-3,"-",null,null,{"$f":"3","v":3}]
[{"$f":"B143+1","v":20481},{"$f":"GENERAL!A21","v":20480},{"$f":"GENERAL!B21","v":5000},{"$f":"SUM(D144)","v":1},null,{"$f":"GENERAL!E21","v":"Request of integrated data (energy and average power)"}]
[20481,20480,{"$f":"DEC2HEX(B144)","v":"5000"},1,null,"Energy stored data page reading","unsigned integer","-","-",null,"See Note 6",{"$f":"3","v":3}]
[20497,{"$f":"GENERAL!A22","v":20496},{"$f":"GENERAL!B22","v":5010},{"$f":"SUM(D146)","v":1},null,{"$f":"GENERAL!E22","v":"Request of real time data"}]
[20497,20496,"5010",1,null,"Real Time Stored data page reading","unsigned integer","-","-",null,"See Note 7",{"$f":"3","v":3}]
[28673,{"$f":"GENERAL!A24","v":28672},{"$f":"GENERAL!B24","v":7000},{"$f":"SUM(D148:D350)","v":200},null,{"$f":"GENERAL!E24","v":"Harmonics - Only with F4N107 Module"}]
[28673,28672,7000,1,null,"Current phase 1 - fundamental","unsigned integer",0.1,"%",null,null,{"$f":"3","v":3}]
[{"$f":"B149+1","v":28674},{"$f":"B148+D148","v":28673},{"$f":"DEC2HEX(B149)","v":"7001"},1,null,"Current phase 1 - 2nd harmonic percentage","unsigned integer",0.1,"%",null,null,{"$f":"3","v":3}]
[28675,28674,"7002",1,null,"Current phase 1 - 3rd harmonic percentage","unsigned integer",0.1,"%",null,null,{"$f":"3","v":3}]
[28676,28675,"7003",1,null,"Current phase 1 - 4th harmonic percentage","unsigned integer",0.1,"%",null,null,{"$f":"3","v":3}]
[28677,28676,"7004",1,null,"Current phase 1 - 5th harmonic percentage","unsigned integer",0.1,"%",null,null,{"$f":"3","v":3}]
[28678,28677,"7005",1,null,"Current phase 1 - 6th harmonic percentage","unsigned integer",0.1,"%",null,null,{"$f":"3","v":3}]
[28679,28678,"7006",1,null,"Current phase 1 - 7th harmonic percentage","unsigned integer",0.1,"%",null,null,{"$f":"3","v":3}]
[28680,28679,"7007",1,null,"Current phase 1 - 8th harmonic percentage","unsigned integer",0.1,"%",null,null,{"$f":"3","v":3}]
[28681,28680,"7008",1,null,"Current phase 1 - 9th harmonic percentage","unsigned integer",0.1,"%",null,null,{"$f":"3","v":3}]
[28682,28681,"7009",1,null,"Current phase 1 - 10th harmonic percentage","unsigned integer",0.1,"%",null,null,{"$f":"3","v":3}]
[28683,28682,"700A",1,null,"Current phase 1 - 11th harmonic percentage","unsigned integer",0.1,"%",null,null,{"$f":"3","v":3}]
[28684,28683,"700B",1,null,"Current phase 1 - 12th harmonic percentage","unsigned integer",0.1,"%",null,null,{"$f":"3","v":3}]
[28685,28684,"700C",1,null,"Current phase 1 - 13th harmonic percentage","unsigned integer",0.1,"%",null,null,{"$f":"3","v":3}]
[28686,28685,"700D",1,null,"Current phase 1 - 14th harmonic percentage","unsigned integer",0.1,"%",null,null,{"$f":"3","v":3}]
[28687,28686,"700E",1,null,"Current phase 1 - 15th harmonic percentage","unsigned integer",0.1,"%",null,null,{"$f":"3","v":3}]
[28688,28687,"700F",1,null,"Current phase 1 - 16th harmonic percentage","unsigned integer",0.1,"%",null,null,{"$f":"3","v":3}]
[28689,28688,"7010",1,null,"Current phase 1 - 17th harmonic percentage","unsigned integer",0.1,"%",null,null,{"$f":"3","v":3}]
[28690,28689,"7011",1,null,"Current phase 1 - 18th harmonic percentage","unsigned integer",0.1,"%",null,null,{"$f":"3","v":3}]
[28691,28690,"7012",1,null,"Current phase 1 - 19th harmonic percentage","unsigned integer",0.1,"%",null,null,{"$f":"3","v":3}]
[28692,28691,"7013",1,null,"Current phase 1 - 20th harmonic percentage","unsigned integer",0.1,"%",null,null,{"$f":"3","v":3}]
[28693,28692,"7014",1,null,"Current phase 1 - 21st harmonic percentage","unsigned integer",0.1,"%",null,null,{"$f":"3","v":3}]
[28694,28693,"7015",1,null,"Current phase 1 - 22nd harmonic percentage","unsigned integer",0.1,"%",null,null,{"$f":"3","v":3}]
[28695,28694,"7016",1,null,"Current phase 1 - 23rd harmonic percentage","unsigned integer",0.1,"%",null,null,{"$f":"3","v":3}]
[28696,28695,"7017",1,null,"Current phase 1 - 24th harmonic percentage","unsigned integer",0.1,"%",null,null,{"$f":"3","v":3}]
[28697,28696,"7018",1,null,"Current phase 1 - 25th harmonic percentage","unsigned integer",0.1,"%",null,null,{"$f":"3","v":3}]
[28698,28697,"7019",1,null,"Current phase 1 - 26th harmonic percentage","unsigned integer",0.1,"%",null,null,{"$f":"3","v":3}]
[28699,28698,"701A",1,null,"Current phase 1 - 27th harmonic percentage","unsigned integer",0.1,"%",null,null,{"$f":"3","v":3}]
[28700,28699,"701B",1,null,"Current phase 1 - 28th harmonic percentage","unsigned integer",0.1,"%",null,null,{"$f":"3","v":3}]
[28701,28700,"701C",1,null,"Current phase 1 - 29th harmonic percentage","unsigned integer",0.1,"%",null,null,{"$f":"3","v":3}]
[28702,28701,"701D",1,null,"Current phase 1 - 30th harmonic percentage","unsigned integer",0.1,"%",null,null,{"$f":"3","v":3}]
[28703,28702,"701E",1,null,"Current phase 1 - 31st harmonic percentage","unsigned integer",0.1,"%",null,null,{"$f":"3","v":3}]
[28704,28703,"701F",1,null,"Current phase 1 - 32nd harmonic percentage","unsigned integer",0.1,"%",null,null,{"$f":"3","v":3}]
[28705,28704,"7020",1,null,"Current phase 1 - 33rd harmonic percentage","unsigned integer",0.1,"%",null,null,{"$f":"3","v":3}]
[28706,28705,"7021",1,null,"Current phase 1 - 34th harmonic percentage","unsigned integer",0.1,"%",null,null,{"$f":"3","v":3}]
[28707,28706,"7022",1,null,"Current phase 1 - 35th harmonic percentage","unsigned integer",0.1,"%",null,null,{"$f":"3","v":3}]
[28708,28707,"7023",1,null,"Current phase 1 - 36th harmonic percentage","unsigned integer",0.1,"%",null,null,{"$f":"3","v":3}]
[28709,28708,"7024",1,null,"Current phase 1 - 37th harmonic percentage","unsigned integer",0.1,"%",null,null,{"$f":"3","v":3}]
[28710,28709,"7025",1,null,"Current phase 1 - 38th harmonic percentage","unsigned integer",0.1,"%",null,null,{"$f":"3","v":3}]
[28711,28710,"7026",1,null,"Current phase 1 - 39th harmonic percentage","unsigned integer",0.1,"%",null,null,{"$f":"3","v":3}]
[28712,28711,"7027",1,null,"Current phase 1 - 40th harmonic percentage","unsigned integer",0.1,"%",null,null,{"$f":"3","v":3}]
[28713,28712,"7028",1,null,"Current phase 1 - 41st harmonic percentage","unsigned integer",0.1,"%",null,null,{"$f":"3","v":3}]
[28714,28713,"7029",1,null,"Current phase 1 - 42nd harmonic percentage","unsigned integer",0.1,"%",null,null,{"$f":"3","v":3}]
[28715,28714,"702A",1,null,"Current phase 1 - 43rd harmonic percentage","unsigned integer",0.1,"%",null,null,{"$f":"3","v":3}]
[28716,28715,"702B",1,null,"Current phase 1 - 44th harmonic percentage","unsigned integer",0.1,"%",null,null,{"$f":"3","v":3}]
[28717,28716,"702C",1,null,"Current phase 1 - 45th harmonic percentage","unsigned integer",0.1,"%",null,null,{"$f":"3","v":3}]
[28718,28717,"702D",1,null,"Current phase 1 - 46th harmonic percentage","unsigned integer",0.1,"%",null,null,{"$f":"3","v":3}]
[28719,28718,"702E",1,null,"Current phase 1 - 47th harmonic percentage","unsigned integer",0.1,"%",null,null,{"$f":"3","v":3}]
[28720,28719,"702F",1,null,"Current phase 1 - 48th harmonic percentage","unsigned integer",0.1,"%",null,null,{"$f":"3","v":3}]
[28721,28720,"7030",1,null,"Current phase 1 - 49th harmonic percentage","unsigned integer",0.1,"%",null,null,{"$f":"3","v":3}]
[28722,28721,"7031",1,null,"Current phase 1 - 50th harmonic percentage","unsigned integer",0.1,"%",null,null,{"$f":"3","v":3}]
[]
[{"$f":"B199+1","v":28737},28736,7040,1,null,"Current phase 2 - fundamental","unsigned integer",0.1,"%",null,null,{"$f":"3","v":3}]
[{"$f":"B200+1","v":28738},{"$f":"B199+D199","v":28737},{"$f":"DEC2HEX(B200)","v":"7041"},1,null,"Current phase 2 - 2nd harmonic percentage","unsigned integer",0.1,"%",null,null,{"$f":"3","v":3}]
[28739,28738,"7042",1,null,"Current phase 2 - 3rd harmonic percentage","unsigned integer",0.1,"%",null,null,{"$f":"3","v":3}]
[28740,28739,"7043",1,null,"Current phase 2 - 4th harmonic percentage","unsigned integer",0.1,"%",null,null,{"$f":"3","v":3}]
[28741,28740,"7044",1,null,"Current phase 2 - 5th harmonic percentage","unsigned integer",0.1,"%",null,null,{"$f":"3","v":3}]
[28742,28741,"7045",1,null,"Current phase 2 - 6th harmonic percentage","unsigned integer",0.1,"%",null,null,{"$f":"3","v":3}]
[28743,28742,"7046",1,null,"Current phase 2 - 7th harmonic percentage","unsigned integer",0.1,"%",null,null,{"$f":"3","v":3}]
[28744,28743,"7047",1,null,"Current phase 2 - 8th harmonic percentage","unsigned integer",0.1,"%",null,null,{"$f":"3","v":3}]
[28745,28744,"7048",1,null,"Current phase 2 - 9th harmonic percentage","unsigned integer",0.1,"%",null,null,{"$f":"3","v":3}]
[28746,28745,"7049",1,null,"Current phase 2 - 10th harmonic percentage","unsigned integer",0.1,"%",null,null,{"$f":"3","v":3}]
[28747,28746,"704A",1,null,"Current phase 2 - 11th harmonic percentage","unsigned integer",0.1,"%",null,null,{"$f":"3","v":3}]
[28748,28747,"704B",1,null,"Current phase 2 - 12th harmonic percentage","unsigned integer",0.1,"%",null,null,{"$f":"3","v":3}]
[28749,28748,"704C",1,null,"Current phase 2 - 13th harmonic percentage","unsigned integer",0.1,"%",null,null,{"$f":"3","v":3}]
[28750,28749,"704D",1,null,"Current phase 2 - 14th harmonic percentage","unsigned integer",0.1,"%",null,null,{"$f":"3","v":3}]
[28751,28750,"704E",1,null,"Current phase 2 - 15th harmonic percentage","unsigned integer",0.1,"%",null,null,{"$f":"3","v":3}]
[28752,28751,"704F",1,null,"Current phase 2 - 16th harmonic percentage","unsigned integer",0.1,"%",null,null,{"$f":"3","v":3}]
[28753,28752,"7050",1,null,"Current phase 2 - 17th harmonic percentage","unsigned integer",0.1,"%",null,null,{"$f":"3","v":3}]
[28754,28753,"7051",1,null,"Current phase 2 - 18th harmonic percentage","unsigned integer",0.1,"%",null,null,{"$f":"3","v":3}]
[28755,28754,"7052",1,null,"Current phase 2 - 19th harmonic percentage","unsigned integer",0.1,"%",null,null,{"$f":"3","v":3}]
[28756,28755,"7053",1,null,"Current phase 2 - 20th harmonic percentage","unsigned integer",0.1,"%",null,null,{"$f":"3","v":3}]
[28757,28756,"7054",1,null,"Current phase 2 - 21st harmonic percentage","unsigned integer",0.1,"%",null,null,{"$f":"3","v":3}]
[28758,28757,"7055",1,null,"Current phase 2 - 22nd harmonic percentage","unsigned integer",0.1,"%",null,null,{"$f":"3","v":3}]
[28759,28758,"7056",1,null,"Current phase 2 - 23rd harmonic percentage","unsigned integer",0.1,"%",null,null,{"$f":"3","v":3}]
[28760,28759,"7057",1,null,"Current phase 2 - 24th harmonic percentage","unsigned integer",0.1,"%",null,null,{"$f":"3","v":3}]
[28761,28760,"7058",1,null,"Current phase 2 - 25th harmonic percentage","unsigned integer",0.1,"%",null,null,{"$f":"3","v":3}]
[28762,28761,"7059",1,null,"Current phase 2 - 26th harmonic percentage","unsigned integer",0.1,"%",null,null,{"$f":"3","v":3}]
[28763,28762,"705A",1,null,"Current phase 2 - 27th harmonic percentage","unsigned integer",0.1,"%",null,null,{"$f":"3","v":3}]
[28764,28763,"705B",1,null,"Current phase 2 - 28th harmonic percentage","unsigned integer",0.1,"%",null,null,{"$f":"3","v":3}]
[28765,28764,"705C",1,null,"Current phase 2 - 29th harmonic percentage","unsigned integer",0.1,"%",null,null,{"$f":"3","v":3}]
[28766,28765,"705D",1,null,"Current phase 2 - 30th harmonic percentage","unsigned integer",0.1,"%",null,null,{"$f":"3","v":3}]
[28767,28766,"705E",1,null,"Current phase 2 - 31st harmonic percentage","unsigned integer",0.1,"%",null,null,{"$f":"3","v":3}]
[28768,28767,"705F",1,null,"Current phase 2 - 32nd harmonic percentage","unsigned integer",0.1,"%",null,null,{"$f":"3","v":3}]
[28769,28768,"7060",1,null,"Current phase 2 - 33rd harmonic percentage","unsigned integer",0.1,"%",null,null,{"$f":"3","v":3}]
[28770,28769,"7061",1,null,"Current phase 2 - 34th harmonic percentage","unsigned integer",0.1,"%",null,null,{"$f":"3","v":3}]
[28771,28770,"7062",1,null,"Current phase 2 - 35th harmonic percentage","unsigned integer",0.1,"%",null,null,{"$f":"3","v":3}]
[28772,28771,"7063",1,null,"Current phase 2 - 36th harmonic percentage","unsigned integer",0.1,"%",null,null,{"$f":"3","v":3}]
[28773,28772,"7064",1,null,"Current phase 2 - 37th harmonic percentage","unsigned integer",0.1,"%",null,null,{"$f":"3","v":3}]
[28774,28773,"7065",1,null,"Current phase 2 - 38th harmonic percentage","unsigned integer",0.1,"%",null,null,{"$f":"3","v":3}]
[28775,28774,"7066",1,null,"Current phase 2 - 39th harmonic percentage","unsigned integer",0.1,"%",null,null,{"$f":"3","v":3}]
[28776,28775,"7067",1,null,"Current phase 2 - 40th harmonic percentage","unsigned integer",0.1,"%",null,null,{"$f":"3","v":3}]
[28777,28776,"7068",1,null,"Current phase 2 - 41st harmonic percentage","unsigned integer",0.1,"%",null,null,{"$f":"3","v":3}]
[28778,28777,"7069",1,null,"Current phase 2 - 42nd harmonic percentage","unsigned integer",0.1,"%",null,null,{"$f":"3","v":3}]
[28779,28778,"706A",1,null,"Current phase 2 - 43rd harmonic percentage","unsigned integer",0.1,"%",null,null,{"$f":"3","v":3}]
[28780,28779,"706B",1,null,"Current phase 2 - 44th harmonic percentage","unsigned integer",0.1,"%",null,null,{"$f":"3","v":3}]
[28781,28780,"706C",1,null,"Current phase 2 - 45th harmonic percentage","unsigned integer",0.1,"%",null,null,{"$f":"3","v":3}]
[28782,28781,"706D",1,null,"Current phase 2 - 46th harmonic percentage","unsigned integer",0.1,"%",null,null,{"$f":"3","v":3}]
[28783,28782,"706E",1,null,"Current phase 2 - 47th harmonic percentage","unsigned integer",0.1,"%",null,null,{"$f":"3","v":3}]
[28784,28783,"706F",1,null,"Current phase 2 - 48th harmonic percentage","unsigned integer",0.1,"%",null,null,{"$f":"3","v":3}]
[28785,28784,"7070",1,null,"Current phase 2 - 49th harmonic percentage","unsigned integer",0.1,"%",null,null,{"$f":"3","v":3}]
[28786,28785,"7071",1,null,"Current phase 2 - 50th harmonic percentage","unsigned integer",0.1,"%",null,null,{"$f":"3","v":3}]
[]
[{"$f":"B250+1","v":28801},28800,7080,1,null,"Current phase 3 - fundamental","unsigned integer",0.1,"%",null,null,{"$f":"3","v":3}]
[{"$f":"B251+1","v":28802},{"$f":"B250+D250","v":28801},{"$f":"DEC2HEX(B251)","v":"7081"},1,null,"Current phase 3 - 2nd harmonic percentage","unsigned integer",0.1,"%",null,null,{"$f":"3","v":3}]
[28803,28802,"7082",1,null,"Current phase 3 - 3rd harmonic percentage","unsigned integer",0.1,"%",null,null,{"$f":"3","v":3}]
[28804,28803,"7083",1,null,"Current phase 3 - 4th harmonic percentage","unsigned integer",0.1,"%",null,null,{"$f":"3","v":3}]
[28805,28804,"7084",1,null,"Current phase 3 - 5th harmonic percentage","unsigned integer",0.1,"%",null,null,{"$f":"3","v":3}]
[28806,28805,"7085",1,null,"Current phase 3 - 6th harmonic percentage","unsigned integer",0.1,"%",null,null,{"$f":"3","v":3}]
[28807,28806,"7086",1,null,"Current phase 3 - 7th harmonic percentage","unsigned integer",0.1,"%",null,null,{"$f":"3","v":3}]
[28808,28807,"7087",1,null,"Current phase 3 - 8th harmonic percentage","unsigned integer",0.1,"%",null,null,{"$f":"3","v":3}]
[28809,28808,"7088",1,null,"Current phase 3 - 9th harmonic percentage","unsigned integer",0.1,"%",null,null,{"$f":"3","v":3}]
[28810,28809,"7089",1,null,"Current phase 3 - 10th harmonic percentage","unsigned integer",0.1,"%",null,null,{"$f":"3","v":3}]
[28811,28810,"708A",1,null,"Current phase 3 - 11th harmonic percentage","unsigned integer",0.1,"%",null,null,{"$f":"3","v":3}]
[28812,28811,"708B",1,null,"Current phase 3 - 12th harmonic percentage","unsigned integer",0.1,"%",null,null,{"$f":"3","v":3}]
[28813,28812,"708C",1,null,"Current phase 3 - 13th harmonic percentage","unsigned integer",0.1,"%",null,null,{"$f":"3","v":3}]
[28814,28813,"708D",1,null,"Current phase 3 - 14th harmonic percentage","unsigned integer",0.1,"%",null,null,{"$f":"3","v":3}]
[28815,28814,"708E",1,null,"Current phase 3 - 15th harmonic percentage","unsigned integer",0.1,"%",null,null,{"$f":"3","v":3}]
[28816,28815,"708F",1,null,"Current phase 3 - 16th harmonic percentage","unsigned integer",0.1,"%",null,null,{"$f":"3","v":3}]
[28817,28816,"7090",1,null,"Current phase 3 - 17th harmonic percentage","unsigned integer",0.1,"%",null,null,{"$f":"3","v":3}]
[28818,28817,"7091",1,null,"Current phase 3 - 18th harmonic percentage","unsigned integer",0.1,"%",null,null,{"$f":"3","v":3}]
[28819,28818,"7092",1,null,"Current phase 3 - 19th harmonic percentage","unsigned integer",0.1,"%",null,null,{"$f":"3","v":3}]
[28820,28819,"7093",1,null,"Current phase 3 - 20th harmonic percentage","unsigned integer",0.1,"%",null,null,{"$f":"3","v":3}]
[28821,28820,"7094",1,null,"Current phase 3 - 21st harmonic percentage","unsigned integer",0.1,"%",null,null,{"$f":"3","v":3}]
[28822,28821,"7095",1,null,"Current phase 3 - 22nd harmonic percentage","unsigned integer",0.1,"%",null,null,{"$f":"3","v":3}]
[28823,28822,"7096",1,null,"Current phase 3 - 23rd harmonic percentage","unsigned integer",0.1,"%",null,null,{"$f":"3","v":3}]
[28824,28823,"7097",1,null,"Current phase 3 - 24th harmonic percentage","unsigned integer",0.1,"%",null,null,{"$f":"3","v":3}]
[28825,28824,"7098",1,null,"Current phase 3 - 25th harmonic percentage","unsigned integer",0.1,"%",null,null,{"$f":"3","v":3}]
[28826,28825,"7099",1,null,"Current phase 3 - 26th harmonic percentage","unsigned integer",0.1,"%",null,null,{"$f":"3","v":3}]
[28827,28826,"709A",1,null,"Current phase 3 - 27th harmonic percentage","unsigned integer",0.1,"%",null,null,{"$f":"3","v":3}]
[28828,28827,"709B",1,null,"Current phase 3 - 28th harmonic percentage","unsigned integer",0.1,"%",null,null,{"$f":"3","v":3}]
[28829,28828,"709C",1,null,"Current phase 3 - 29th harmonic percentage","unsigned integer",0.1,"%",null,null,{"$f":"3","v":3}]
[28830,28829,"709D",1,null,"Current phase 3 - 30th harmonic percentage","unsigned integer",0.1,"%",null,null,{"$f":"3","v":3}]
[28831,28830,"709E",1,null,"Current phase 3 - 31st harmonic percentage","unsigned integer",0.1,"%",null,null,{"$f":"3","v":3}]
[28832,28831,"709F",1,null,"Current phase 3 - 32nd harmonic percentage","unsigned integer",0.1,"%",null,null,{"$f":"3","v":3}]
[28833,28832,"70A0",1,null,"Current phase 3 - 33rd harmonic percentage","unsigned integer",0.1,"%",null,null,{"$f":"3","v":3}]
[28834,28833,"70A1",1,null,"Current phase 3 - 34th harmonic percentage","unsigned integer",0.1,"%",null,null,{"$f":"3","v":3}]
[28835,28834,"70A2",1,null,"Current phase 3 - 35th harmonic percentage","unsigned integer",0.1,"%",null,null,{"$f":"3","v":3}]
[28836,28835,"70A3",1,null,"Current phase 3 - 36th harmonic percentage","unsigned integer",0.1,"%",null,null,{"$f":"3","v":3}]
[28837,28836,"70A4",1,null,"Current phase 3 - 37th harmonic percentage","unsigned integer",0.1,"%",null,null,{"$f":"3","v":3}]
[28838,28837,"70A5",1,null,"Current phase 3 - 38th harmonic percentage","unsigned integer",0.1,"%",null,null,{"$f":"3","v":3}]
[28839,28838,"70A6",1,null,"Current phase 3 - 39th harmonic percentage","unsigned integer",0.1,"%",null,null,{"$f":"3","v":3}]
[28840,28839,"70A7",1,null,"Current phase 3 - 40th harmonic percentage","unsigned integer",0.1,"%",null,null,{"$f":"3","v":3}]
[28841,28840,"70A8",1,null,"Current phase 3 - 41st harmonic percentage","unsigned integer",0.1,"%",null,null,{"$f":"3","v":3}]
[28842,28841,"70A9",1,null,"Current phase 3 - 42nd harmonic percentage","unsigned integer",0.1,"%",null,null,{"$f":"3","v":3}]
[28843,28842,"70AA",1,null,"Current phase 3 - 43rd harmonic percentage","unsigned integer",0.1,"%",null,null,{"$f":"3","v":3}]
[28844,28843,"70AB",1,null,"Current phase 3 - 44th harmonic percentage","unsigned integer",0.1,"%",null,null,{"$f":"3","v":3}]
[28845,28844,"70AC",1,null,"Current phase 3 - 45th harmonic percentage","unsigned integer",0.1,"%",null,null,{"$f":"3","v":3}]
[28846,28845,"70AD",1,null,"Current phase 3 - 46th harmonic percentage","unsigned integer",0.1,"%",null,null,{"$f":"3","v":3}]
[28847,28846,"70AE",1,null,"Current phase 3 - 47th harmonic percentage","unsigned integer",0.1,"%",null,null,{"$f":"3","v":3}]
[28848,28847,"70AF",1,null,"Current phase 3 - 48th harmonic percentage","unsigned integer",0.1,"%",null,null,{"$f":"3","v":3}]
[28849,28848,"70B0",1,null,"Current phase 3 - 49th harmonic percentage","unsigned integer",0.1,"%",null,null,{"$f":"3","v":3}]
[28850,28849,"70B1",1,null,"Current phase 3 - 50th harmonic percentage","unsigned integer",0.1,"%",null,null,{"$f":"3","v":3}]
[]
[{"$f":"B301+1","v":28865},28864,"70C0",1,null,"Voltage phase 1 - fundamental","unsigned integer",0.1,"%",null,"See Note 3",{"$f":"3","v":3}]
[28866,{"$f":"B301+D301","v":28865},{"$f":"DEC2HEX(B302)","v":"70C1"},1,null,"Voltage phase 1 - 2nd harmonic percentage","unsigned integer",0.1,"%",null,"See Note 3",{"$f":"3","v":3}]
[28867,28866,"70C2",1,null,"Voltage phase 1 - 3rd harmonic percentage","unsigned integer",0.1,"%",null,"See Note 3",{"$f":"3","v":3}]
[28868,28867,"70C3",1,null,"Voltage phase 1 - 4th harmonic percentage","unsigned integer",0.1,"%",null,"See Note 3",{"$f":"3","v":3}]
[28869,28868,"70C4",1,null,"Voltage phase 1 - 5th harmonic percentage","unsigned integer",0.1,"%",null,"See Note 3",{"$f":"3","v":3}]
[28870,28869,"70C5",1,null,"Voltage phase 1 - 6th harmonic percentage","unsigned integer",0.1,"%",null,"See Note 3",{"$f":"3","v":3}]
[28871,28870,"70C6",1,null,"Voltage phase 1 - 7th harmonic percentage","unsigned integer",0.1,"%",null,"See Note 3",{"$f":"3","v":3}]
[28872,28871,"70C7",1,null,"Voltage phase 1 - 8th harmonic percentage","unsigned integer",0.1,"%",null,"See Note 3",{"$f":"3","v":3}]
[28873,28872,"70C8",1,null,"Voltage phase 1 - 9th harmonic percentage","unsigned integer",0.1,"%",null,"See Note 3",{"$f":"3","v":3}]
[28874,28873,"70C9",1,null,"Voltage phase 1 - 10th harmonic percentage","unsigned integer",0.1,"%",null,"See Note 3",{"$f":"3","v":3}]
[28875,28874,"70CA",1,null,"Voltage phase 1 - 11th harmonic percentage","unsigned integer",0.1,"%",null,"See Note 3",{"$f":"3","v":3}]
[28876,28875,"70CB",1,null,"Voltage phase 1 - 12th harmonic percentage","unsigned integer",0.1,"%",null,"See Note 3",{"$f":"3","v":3}]
[28877,28876,"70CC",1,null,"Voltage phase 1 - 13th harmonic percentage","unsigned integer",0.1,"%",null,"See Note 3",{"$f":"3","v":3}]
[28878,28877,"70CD",1,null,"Voltage phase 1 - 14th harmonic percentage","unsigned integer",0.1,"%",null,"See Note 3",{"$f":"3","v":3}]
[28879,28878,"70CE",1,null,"Voltage phase 1 - 15th harmonic percentage","unsigned integer",0.1,"%",null,"See Note 3",{"$f":"3","v":3}]
[28880,28879,"70CF",1,null,"Voltage phase 1 - 16th harmonic percentage","unsigned integer",0.1,"%",null,"See Note 3",{"$f":"3","v":3}]
[28881,28880,"70D0",1,null,"Voltage phase 1 - 17th harmonic percentage","unsigned integer",0.1,"%",null,"See Note 3",{"$f":"3","v":3}]
[28882,28881,"70D1",1,null,"Voltage phase 1 - 18th harmonic percentage","unsigned integer",0.1,"%",null,"See Note 3",{"$f":"3","v":3}]
[28883,28882,"70D2",1,null,"Voltage phase 1 - 19th harmonic percentage","unsigned integer",0.1,"%",null,"See Note 3",{"$f":"3","v":3}]
[28884,28883,"70D3",1,null,"Voltage phase 1 - 20th harmonic percentage","unsigned integer",0.1,"%",null,"See Note 3",{"$f":"3","v":3}]
[28885,28884,"70D4",1,null,"Voltage phase 1 - 21st harmonic percentage","unsigned integer",0.1,"%",null,"See Note 3",{"$f":"3","v":3}]
[28886,28885,"70D5",1,null,"Voltage phase 1 - 22nd harmonic percentage","unsigned integer",0.1,"%",null,"See Note 3",{"$f":"3","v":3}]
[28887,28886,"70D6",1,null,"Voltage phase 1 - 23rd harmonic percentage","unsigned integer",0.1,"%",null,"See Note 3",{"$f":"3","v":3}]
[28888,28887,"70D7",1,null,"Voltage phase 1 - 24th harmonic percentage","unsigned integer",0.1,"%",null,"See Note 3",{"$f":"3","v":3}]
[28889,28888,"70D8",1,null,"Voltage phase 1 - 25th harmonic percentage","unsigned integer",0.1,"%",null,"See Note 3",{"$f":"3","v":3}]
[28890,28889,"70D9",1,null,"Voltage phase 1 - 26th harmonic percentage","unsigned integer",0.1,"%",null,"See Note 3",{"$f":"3","v":3}]
[28891,28890,"70DA",1,null,"Voltage phase 1 - 27th harmonic percentage","unsigned integer",0.1,"%",null,"See Note 3",{"$f":"3","v":3}]
[28892,28891,"70DB",1,null,"Voltage phase 1 - 28th harmonic percentage","unsigned integer",0.1,"%",null,"See Note 3",{"$f":"3","v":3}]
[28893,28892,"70DC",1,null,"Voltage phase 1 - 29th harmonic percentage","unsigned integer",0.1,"%",null,"See Note 3",{"$f":"3","v":3}]
[28894,28893,"70DD",1,null,"Voltage phase 1 - 30th harmonic percentage","unsigned integer",0.1,"%",null,"See Note 3",{"$f":"3","v":3}]
[28895,28894,"70DE",1,null,"Voltage phase 1 - 31st harmonic percentage","unsigned integer",0.1,"%",null,"See Note 3",{"$f":"3","v":3}]
[28896,28895,"70DF",1,null,"Voltage phase 1 - 32nd harmonic percentage","unsigned integer",0.1,"%",null,"See Note 3",{"$f":"3","v":3}]
[28897,28896,"70E0",1,null,"Voltage phase 1 - 33rd harmonic percentage","unsigned integer",0.1,"%",null,"See Note 3",{"$f":"3","v":3}]
[28898,28897,"70E1",1,null,"Voltage phase 1 - 34th harmonic percentage","unsigned integer",0.1,"%",null,"See Note 3",{"$f":"3","v":3}]
[28899,28898,"70E2",1,null,"Voltage phase 1 - 35th harmonic percentage","unsigned integer",0.1,"%",null,"See Note 3",{"$f":"3","v":3}]
[28900,28899,"70E3",1,null,"Voltage phase 1 - 36th harmonic percentage","unsigned integer",0.1,"%",null,"See Note 3",{"$f":"3","v":3}]
[28901,28900,"70E4",1,null,"Voltage phase 1 - 37th harmonic percentage","unsigned integer",0.1,"%",null,"See Note 3",{"$f":"3","v":3}]
[28902,28901,"70E5",1,null,"Voltage phase 1 - 38th harmonic percentage","unsigned integer",0.1,"%",null,"See Note 3",{"$f":"3","v":3}]
[28903,28902,"70E6",1,null,"Voltage phase 1 - 39th harmonic percentage","unsigned integer",0.1,"%",null,"See Note 3",{"$f":"3","v":3}]
[28904,28903,"70E7",1,null,"Voltage phase 1 - 40th harmonic percentage","unsigned integer",0.1,"%",null,"See Note 3",{"$f":"3","v":3}]
[28905,28904,"70E8",1,null,"Voltage phase 1 - 41st harmonic percentage","unsigned integer",0.1,"%",null,"See Note 3",{"$f":"3","v":3}]
[28906,28905,"70E9",1,null,"Voltage phase 1 - 42nd harmonic percentage","unsigned integer",0.1,"%",null,"See Note 3",{"$f":"3","v":3}]
[28907,28906,"70EA",1,null,"Voltage phase 1 - 43rd harmonic percentage","unsigned integer",0.1,"%",null,"See Note 3",{"$f":"3","v":3}]
[28908,28907,"70EB",1,null,"Voltage phase 1 - 44th harmonic percentage","unsigned integer",0.1,"%",null,"See Note 3",{"$f":"3","v":3}]
[28909,28908,"70EC",1,null,"Voltage phase 1 - 45th harmonic percentage","unsigned integer",0.1,"%",null,"See Note 3",{"$f":"3","v":3}]
[28910,28909,"70ED",1,null,"Voltage phase 1 - 46th harmonic percentage","unsigned integer",0.1,"%",null,"See Note 3",{"$f":"3","v":3}]
[28911,28910,"70EE",1,null,"Voltage phase 1 - 47th harmonic percentage","unsigned integer",0.1,"%",null,"See Note 3",{"$f":"3","v":3}]
[28912,28911,"70EF",1,null,"Voltage phase 1 - 48th harmonic percentage","unsigned integer",0.1,"%",null,"See Note 3",{"$f":"3","v":3}]
[28913,28912,"70F0",1,null,"Voltage phase 1 - 49th harmonic percentage","unsigned integer",0.1,"%",null,"See Note 3",{"$f":"3","v":3}]
[28914,28913,"70F1",1,null,"Voltage phase 1 - 50th harmonic percentage","unsigned integer",0.1,"%",null,"See Note 3",{"$f":"3","v":3}]
[{"$f":"B351+1","v":28929},28928,7100,{"$f":"SUM(D352:D452)","v":100}]
[{"$f":"B352+1","v":28929},28928,7100,1,null,"Voltage phase 2 - fundamental","unsigned integer",0.1,"%",null,"See Note 3",{"$f":"3","v":3}]
[28930,{"$f":"B352+D352","v":28929},{"$f":"DEC2HEX(B353)","v":"7101"},1,null,"Voltage phase 2 - 2nd harmonic percentage","unsigned integer",0.1,"%",null,"See Note 3",{"$f":"3","v":3}]
[28931,28930,"7102",1,null,"Voltage phase 2 - 3rd harmonic percentage","unsigned integer",0.1,"%",null,"See Note 3",{"$f":"3","v":3}]
[28932,28931,"7103",1,null,"Voltage phase 2 - 4th harmonic percentage","unsigned integer",0.1,"%",null,"See Note 3",{"$f":"3","v":3}]
[28933,28932,"7104",1,null,"Voltage phase 2 - 5th harmonic percentage","unsigned integer",0.1,"%",null,"See Note 3",{"$f":"3","v":3}]
[28934,28933,"7105",1,null,"Voltage phase 2 - 6th harmonic percentage","unsigned integer",0.1,"%",null,"See Note 3",{"$f":"3","v":3}]
[28935,28934,"7106",1,null,"Voltage phase 2 - 7th harmonic percentage","unsigned integer",0.1,"%",null,"See Note 3",{"$f":"3","v":3}]
[28936,28935,"7107",1,null,"Voltage phase 2 - 8th harmonic percentage","unsigned integer",0.1,"%",null,"See Note 3",{"$f":"3","v":3}]
[28937,28936,"7108",1,null,"Voltage phase 2 - 9th harmonic percentage","unsigned integer",0.1,"%",null,"See Note 3",{"$f":"3","v":3}]
[28938,28937,"7109",1,null,"Voltage phase 2 - 10th harmonic percentage","unsigned integer",0.1,"%",null,"See Note 3",{"$f":"3","v":3}]
[28939,28938,"710A",1,null,"Voltage phase 2 - 11th harmonic percentage","unsigned integer",0.1,"%",null,"See Note 3",{"$f":"3","v":3}]
[28940,28939,"710B",1,null,"Voltage phase 2 - 12th harmonic percentage","unsigned integer",0.1,"%",null,"See Note 3",{"$f":"3","v":3}]
[28941,28940,"710C",1,null,"Voltage phase 2 - 13th harmonic percentage","unsigned integer",0.1,"%",null,"See Note 3",{"$f":"3","v":3}]
[28942,28941,"710D",1,null,"Voltage phase 2 - 14th harmonic percentage","unsigned integer",0.1,"%",null,"See Note 3",{"$f":"3","v":3}]
[28943,28942,"710E",1,null,"Voltage phase 2 - 15th harmonic percentage","unsigned integer",0.1,"%",null,"See Note 3",{"$f":"3","v":3}]
[28944,28943,"710F",1,null,"Voltage phase 2 - 16th harmonic percentage","unsigned integer",0.1,"%",null,"See Note 3",{"$f":"3","v":3}]
[28945,28944,"7110",1,null,"Voltage phase 2 - 17th harmonic percentage","unsigned integer",0.1,"%",null,"See Note 3",{"$f":"3","v":3}]
[28946,28945,"7111",1,null,"Voltage phase 2 - 18th harmonic percentage","unsigned integer",0.1,"%",null,"See Note 3",{"$f":"3","v":3}]
[28947,28946,"7112",1,null,"Voltage phase 2 - 19th harmonic percentage","unsigned integer",0.1,"%",null,"See Note 3",{"$f":"3","v":3}]
[28948,28947,"7113",1,null,"Voltage phase 2 - 20th harmonic percentage","unsigned integer",0.1,"%",null,"See Note 3",{"$f":"3","v":3}]
[28949,28948,"7114",1,null,"Voltage phase 2 - 21st harmonic percentage","unsigned integer",0.1,"%",null,"See Note 3",{"$f":"3","v":3}]
[28950,28949,"7115",1,null,"Voltage phase 2 - 22nd harmonic percentage","unsigned integer",0.1,"%",null,"See Note 3",{"$f":"3","v":3}]
[28951,28950,"7116",1,null,"Voltage phase 2 - 23rd harmonic percentage","unsigned integer",0.1,"%",null,"See Note 3",{"$f":"3","v":3}]
[28952,28951,"7117",1,null,"Voltage phase 2 - 24th harmonic percentage","unsigned integer",0.1,"%",null,"See Note 3",{"$f":"3","v":3}]
[28953,28952,"7118",1,null,"Voltage phase 2 - 25th harmonic percentage","unsigned integer",0.1,"%",null,"See Note 3",{"$f":"3","v":3}]
[28954,28953,"7119",1,null,"Voltage phase 2 - 26th harmonic percentage","unsigned integer",0.1,"%",null,"See Note 3",{"$f":"3","v":3}]
[28955,28954,"711A",1,null,"Voltage phase 2 - 27th harmonic percentage","unsigned integer",0.1,"%",null,"See Note 3",{"$f":"3","v":3}]
[28956,28955,"711B",1,null,"Voltage phase 2 - 28th harmonic percentage","unsigned integer",0.1,"%",null,"See Note 3",{"$f":"3","v":3}]
[28957,28956,"711C",1,null,"Voltage phase 2 - 29th harmonic percentage","unsigned integer",0.1,"%",null,"See Note 3",{"$f":"3","v":3}]
[28958,28957,"711D",1,null,"Voltage phase 2 - 30th harmonic percentage","unsigned integer",0.1,"%",null,"See Note 3",{"$f":"3","v":3}]
[28959,28958,"711E",1,null,"Voltage phase 2 - 31st harmonic percentage","unsigned integer",0.1,"%",null,"See Note 3",{"$f":"3","v":3}]
[28960,28959,"711F",1,null,"Voltage phase 2 - 32nd harmonic percentage","unsigned integer",0.1,"%",null,"See Note 3",{"$f":"3","v":3}]
[28961,28960,"7120",1,null,"Voltage phase 2 - 33rd harmonic percentage","unsigned integer",0.1,"%",null,"See Note 3",{"$f":"3","v":3}]
[28962,28961,"7121",1,null,"Voltage phase 2 - 34th harmonic percentage","unsigned integer",0.1,"%",null,"See Note 3",{"$f":"3","v":3}]
[28963,28962,"7122",1,null,"Voltage phase 2 - 35th harmonic percentage","unsigned integer",0.1,"%",null,"See Note 3",{"$f":"3","v":3}]
[28964,28963,"7123",1,null,"Voltage phase 2 - 36th harmonic percentage","unsigned integer",0.1,"%",null,"See Note 3",{"$f":"3","v":3}]
[28965,28964,"7124",1,null,"Voltage phase 2 - 37th harmonic percentage","unsigned integer",0.1,"%",null,"See Note 3",{"$f":"3","v":3}]
[28966,28965,"7125",1,null,"Voltage phase 2 - 38th harmonic percentage","unsigned integer",0.1,"%",null,"See Note 3",{"$f":"3","v":3}]
[28967,28966,"7126",1,null,"Voltage phase 2 - 39th harmonic percentage","unsigned integer",0.1,"%",null,"See Note 3",{"$f":"3","v":3}]
[28968,28967,"7127",1,null,"Voltage phase 2 - 40th harmonic percentage","unsigned integer",0.1,"%",null,"See Note 3",{"$f":"3","v":3}]
[28969,28968,"7128",1,null,"Voltage phase 2 - 41st harmonic percentage","unsigned integer",0.1,"%",null,"See Note 3",{"$f":"3","v":3}]
[28970,28969,"7129",1,null,"Voltage phase 2 - 42nd harmonic percentage","unsigned integer",0.1,"%",null,"See Note 3",{"$f":"3","v":3}]
[28971,28970,"712A",1,null,"Voltage phase 2 - 43rd harmonic percentage","unsigned integer",0.1,"%",null,"See Note 3",{"$f":"3","v":3}]
[28972,28971,"712B",1,null,"Voltage phase 2 - 44th harmonic percentage","unsigned integer",0.1,"%",null,"See Note 3",{"$f":"3","v":3}]
[28973,28972,"712C",1,null,"Voltage phase 2 - 45th harmonic percentage","unsigned integer",0.1,"%",null,"See Note 3",{"$f":"3","v":3}]
[28974,28973,"712D",1,null,"Voltage phase 2 - 46th harmonic percentage","unsigned integer",0.1,"%",null,"See Note 3",{"$f":"3","v":3}]
[28975,28974,"712E",1,null,"Voltage phase 2 - 47th harmonic percentage","unsigned integer",0.1,"%",null,"See Note 3",{"$f":"3","v":3}]
[28976,28975,"712F",1,null,"Voltage phase 2 - 48th harmonic percentage","unsigned integer",0.1,"%",null,"See Note 3",{"$f":"3","v":3}]
[28977,28976,"7130",1,null,"Voltage phase 2 - 49th harmonic percentage","unsigned integer",0.1,"%",null,"See Note 3",{"$f":"3","v":3}]
[28978,28977,"7131",1,null,"Voltage phase 2 - 50th harmonic percentage","unsigned integer",0.1,"%",null,"See Note 3",{"$f":"3","v":3}]
[]
[{"$f":"B403+1","v":28993},28992,7140,1,null,"Voltage phase 3 - fundamental","unsigned integer",0.1,"%",null,"See Note 3",{"$f":"3","v":3}]
[28994,{"$f":"B403+D403","v":28993},{"$f":"DEC2HEX(B404)","v":"7141"},1,null,"Voltage phase 3 - 2nd harmonic percentage","unsigned integer",0.1,"%",null,"See Note 3",{"$f":"3","v":3}]
[28995,28994,"7142",1,null,"Voltage phase 3 - 3rd harmonic percentage","unsigned integer",0.1,"%",null,"See Note 3",{"$f":"3","v":3}]
[28996,28995,"7143",1,null,"Voltage phase 3 - 4th harmonic percentage","unsigned integer",0.1,"%",null,"See Note 3",{"$f":"3","v":3}]
[28997,28996,"7144",1,null,"Voltage phase 3 - 5th harmonic percentage","unsigned integer",0.1,"%",null,"See Note 3",{"$f":"3","v":3}]
[28998,28997,"7145",1,null,"Voltage phase 3 - 6th harmonic percentage","unsigned integer",0.1,"%",null,"See Note 3",{"$f":"3","v":3}]
[28999,28998,"7146",1,null,"Voltage phase 3 - 7th harmonic percentage","unsigned integer",0.1,"%",null,"See Note 3",{"$f":"3","v":3}]
[29000,28999,"7147",1,null,"Voltage phase 3 - 8th harmonic percentage","unsigned integer",0.1,"%",null,"See Note 3",{"$f":"3","v":3}]
[29001,29000,"7148",1,null,"Voltage phase 3 - 9th harmonic percentage","unsigned integer",0.1,"%",null,"See Note 3",{"$f":"3","v":3}]
[29002,29001,"7149",1,null,"Voltage phase 3 - 10th harmonic percentage","unsigned integer",0.1,"%",null,"See Note 3",{"$f":"3","v":3}]
[29003,29002,"714A",1,null,"Voltage phase 3 - 11th harmonic percentage","unsigned integer",0.1,"%",null,"See Note 3",{"$f":"3","v":3}]
[29004,29003,"714B",1,null,"Voltage phase 3 - 12th harmonic percentage","unsigned integer",0.1,"%",null,"See Note 3",{"$f":"3","v":3}]
[29005,29004,"714C",1,null,"Voltage phase 3 - 13th harmonic percentage","unsigned integer",0.1,"%",null,"See Note 3",{"$f":"3","v":3}]
[29006,29005,"714D",1,null,"Voltage phase 3 - 14th harmonic percentage","unsigned integer",0.1,"%",null,"See Note 3",{"$f":"3","v":3}]
[29007,29006,"714E",1,null,"Voltage phase 3 - 15th harmonic percentage","unsigned integer",0.1,"%",null,"See Note 3",{"$f":"3","v":3}]
[29008,29007,"714F",1,null,"Voltage phase 3 - 16th harmonic percentage","unsigned integer",0.1,"%",null,"See Note 3",{"$f":"3","v":3}]
[29009,29008,"7150",1,null,"Voltage phase 3 - 17th harmonic percentage","unsigned integer",0.1,"%",null,"See Note 3",{"$f":"3","v":3}]
[29010,29009,"7151",1,null,"Voltage phase 3 - 18th harmonic percentage","unsigned integer",0.1,"%",null,"See Note 3",{"$f":"3","v":3}]
[29011,29010,"7152",1,null,"Voltage phase 3 - 19th harmonic percentage","unsigned integer",0.1,"%",null,"See Note 3",{"$f":"3","v":3}]
[29012,29011,"7153",1,null,"Voltage phase 3 - 20th harmonic percentage","unsigned integer",0.1,"%",null,"See Note 3",{"$f":"3","v":3}]
[29013,29012,"7154",1,null,"Voltage phase 3 - 21st harmonic percentage","unsigned integer",0.1,"%",null,"See Note 3",{"$f":"3","v":3}]
[29014,29013,"7155",1,null,"Voltage phase 3 - 22nd harmonic percentage","unsigned integer",0.1,"%",null,"See Note 3",{"$f":"3","v":3}]
[29015,29014,"7156",1,null,"Voltage phase 3 - 23rd harmonic percentage","unsigned integer",0.1,"%",null,"See Note 3",{"$f":"3","v":3}]
[29016,29015,"7157",1,null,"Voltage phase 3 - 24th harmonic percentage","unsigned integer",0.1,"%",null,"See Note 3",{"$f":"3","v":3}]
[29017,29016,"7158",1,null,"Voltage phase 3 - 25th harmonic percentage","unsigned integer",0.1,"%",null,"See Note 3",{"$f":"3","v":3}]
[29018,29017,"7159",1,null,"Voltage phase 3 - 26th harmonic percentage","unsigned integer",0.1,"%",null,"See Note 3",{"$f":"3","v":3}]
[29019,29018,"715A",1,null,"Voltage phase 3 - 27th harmonic percentage","unsigned integer",0.1,"%",null,"See Note 3",{"$f":"3","v":3}]
[29020,29019,"715B",1,null,"Voltage phase 3 - 28th harmonic percentage","unsigned integer",0.1,"%",null,"See Note 3",{"$f":"3","v":3}]
[29021,29020,"715C",1,null,"Voltage phase 3 - 29th harmonic percentage","unsigned integer",0.1,"%",null,"See Note 3",{"$f":"3","v":3}]
[29022,29021,"715D",1,null,"Voltage phase 3 - 30th harmonic percentage","unsigned integer",0.1,"%",null,"See Note 3",{"$f":"3","v":3}]
[29023,29022,"715E",1,null,"Voltage phase 3 - 31st harmonic percentage","unsigned integer",0.1,"%",null,"See Note 3",{"$f":"3","v":3}]
[29024,29023,"715F",1,null,"Voltage phase 3 - 32nd harmonic percentage","unsigned integer",0.1,"%",null,"See Note 3",{"$f":"3","v":3}]
[29025,29024,"7160",1,null,"Voltage phase 3 - 33rd harmonic percentage","unsigned integer",0.1,"%",null,"See Note 3",{"$f":"3","v":3}]
[29026,29025,"7161",1,null,"Voltage phase 3 - 34th harmonic percentage","unsigned integer",0.1,"%",null,"See Note 3",{"$f":"3","v":3}]
[29027,29026,"7162",1,null,"Voltage phase 3 - 35th harmonic percentage","unsigned integer",0.1,"%",null,"See Note 3",{"$f":"3","v":3}]
[29028,29027,"7163",1,null,"Voltage phase 3 - 36th harmonic percentage","unsigned integer",0.1,"%",null,"See Note 3",{"$f":"3","v":3}]
[29029,29028,"7164",1,null,"Voltage phase 3 - 37th harmonic percentage","unsigned integer",0.1,"%",null,"See Note 3",{"$f":"3","v":3}]
[29030,29029,"7165",1,null,"Voltage phase 3 - 38th harmonic percentage","unsigned integer",0.1,"%",null,"See Note 3",{"$f":"3","v":3}]
[29031,29030,"7166",1,null,"Voltage phase 3 - 39th harmonic percentage","unsigned integer",0.1,"%",null,"See Note 3",{"$f":"3","v":3}]
[29032,29031,"7167",1,null,"Voltage phase 3 - 40th harmonic percentage","unsigned integer",0.1,"%",null,"See Note 3",{"$f":"3","v":3}]
[29033,29032,"7168",1,null,"Voltage phase 3 - 41st harmonic percentage","unsigned integer",0.1,"%",null,"See Note 3",{"$f":"3","v":3}]
[29034,29033,"7169",1,null,"Voltage phase 3 - 42nd harmonic percentage","unsigned integer",0.1,"%",null,"See Note 3",{"$f":"3","v":3}]
[29035,29034,"716A",1,null,"Voltage phase 3 - 43rd harmonic percentage","unsigned integer",0.1,"%",null,"See Note 3",{"$f":"3","v":3}]
[29036,29035,"716B",1,null,"Voltage phase 3 - 44th harmonic percentage","unsigned integer",0.1,"%",null,"See Note 3",{"$f":"3","v":3}]
[29037,29036,"716C",1,null,"Voltage phase 3 - 45th harmonic percentage","unsigned integer",0.1,"%",null,"See Note 3",{"$f":"3","v":3}]
[29038,29037,"716D",1,null,"Voltage phase 3 - 46th harmonic percentage","unsigned integer",0.1,"%",null,"See Note 3",{"$f":"3","v":3}]
[29039,29038,"716E",1,null,"Voltage phase 3 - 47th harmonic percentage","unsigned integer",0.1,"%",null,"See Note 3",{"$f":"3","v":3}]
[29040,29039,"716F",1,null,"Voltage phase 3 - 48th harmonic percentage","unsigned integer",0.1,"%",null,"See Note 3",{"$f":"3","v":3}]
[29041,29040,"7170",1,null,"Voltage phase 3 - 49th harmonic percentage","unsigned integer",0.1,"%",null,"See Note 3",{"$f":"3","v":3}]
[29042,29041,"7171",1,null,"Voltage phase 3 - 50th harmonic percentage","unsigned integer",0.1,"%",null,"See Note 3",{"$f":"3","v":3}]
[{"$f":"B453+1","v":29185},29184,7200,{"$f":"SUM(D454:D554)","v":200}]
[{"$f":"B454+1","v":29185},29184,7200,2,null,"Current phase 1 - 1st harmonic (rms) ","unsigned integer",1,"mA",null,null,{"$f":"3","v":3}]
[29187,{"$f":"B454+D454","v":29186},{"$f":"DEC2HEX(B455)","v":"7202"},2,null,"Current phase 1 - 2nd harmonic (rms)","unsigned integer",1,"mA",null,null,{"$f":"3","v":3}]
[29189,29188,"7204",2,null,"Current phase 1 - 3rd harmonic (rms)","unsigned integer",1,"mA",null,null,{"$f":"3","v":3}]
[29191,29190,"7206",2,null,"Current phase 1 - 4th harmonic (rms)","unsigned integer",1,"mA",null,null,{"$f":"3","v":3}]
[29193,29192,"7208",2,null,"Current phase 1 - 5th harmonic (rms)","unsigned integer",1,"mA",null,null,{"$f":"3","v":3}]
[29195,29194,"720A",2,null,"Current phase 1 - 6th harmonic (rms)","unsigned integer",1,"mA",null,null,{"$f":"3","v":3}]
[29197,29196,"720C",2,null,"Current phase 1 - 7th harmonic (rms)","unsigned integer",1,"mA",null,null,{"$f":"3","v":3}]
[29199,29198,"720E",2,null,"Current phase 1 - 8th harmonic (rms)","unsigned integer",1,"mA",null,null,{"$f":"3","v":3}]
[29201,29200,"7210",2,null,"Current phase 1 - 9th harmonic (rms)","unsigned integer",1,"mA",null,null,{"$f":"3","v":3}]
[29203,29202,"7212",2,null,"Current phase 1 - 10th harmonic (rms)","unsigned integer",1,"mA",null,null,{"$f":"3","v":3}]
[29205,29204,"7214",2,null,"Current phase 1 - 11th harmonic (rms)","unsigned integer",1,"mA",null,null,{"$f":"3","v":3}]
[29207,29206,"7216",2,null,"Current phase 1 - 12th harmonic (rms)","unsigned integer",1,"mA",null,null,{"$f":"3","v":3}]
[29209,29208,"7218",2,null,"Current phase 1 - 13th harmonic (rms)","unsigned integer",1,"mA",null,null,{"$f":"3","v":3}]
[29211,29210,"721A",2,null,"Current phase 1 - 14th harmonic (rms)","unsigned integer",1,"mA",null,null,{"$f":"3","v":3}]
[29213,29212,"721C",2,null,"Current phase 1 - 15th harmonic (rms)","unsigned integer",1,"mA",null,null,{"$f":"3","v":3}]
[29215,29214,"721E",2,null,"Current phase 1 - 16th harmonic (rms)","unsigned integer",1,"mA",null,null,{"$f":"3","v":3}]
[29217,29216,"7220",2,null,"Current phase 1 - 17th harmonic (rms)","unsigned integer",1,"mA",null,null,{"$f":"3","v":3}]
[29219,29218,"7222",2,null,"Current phase 1 - 18th harmonic (rms)","unsigned integer",1,"mA",null,null,{"$f":"3","v":3}]
[29221,29220,"7224",2,null,"Current phase 1 - 19th harmonic (rms)","unsigned integer",1,"mA",null,null,{"$f":"3","v":3}]
[29223,29222,"7226",2,null,"Current phase 1 - 20th harmonic (rms)","unsigned integer",1,"mA",null,null,{"$f":"3","v":3}]
[29225,29224,"7228",2,null,"Current phase 1 - 21st harmonic (rms)","unsigned integer",1,"mA",null,null,{"$f":"3","v":3}]
[29227,29226,"722A",2,null,"Current phase 1 - 22nd harmonic (rms)","unsigned integer",1,"mA",null,null,{"$f":"3","v":3}]
[29229,29228,"722C",2,null,"Current phase 1 - 23rd harmonic (rms)","unsigned integer",1,"mA",null,null,{"$f":"3","v":3}]
[29231,29230,"722E",2,null,"Current phase 1 - 24th harmonic (rms)","unsigned integer",1,"mA",null,null,{"$f":"3","v":3}]
[29233,29232,"7230",2,null,"Current phase 1 - 25th harmonic (rms)","unsigned integer",1,"mA",null,null,{"$f":"3","v":3}]
[29235,29234,"7232",2,null,"Current phase 1 - 26th harmonic (rms)","unsigned integer",1,"mA",null,null,{"$f":"3","v":3}]
[29237,29236,"7234",2,null,"Current phase 1 - 27th harmonic (rms)","unsigned integer",1,"mA",null,null,{"$f":"3","v":3}]
[29239,29238,"7236",2,null,"Current phase 1 - 28th harmonic (rms)","unsigned integer",1,"mA",null,null,{"$f":"3","v":3}]
[29241,29240,"7238",2,null,"Current phase 1 - 29th harmonic (rms)","unsigned integer",1,"mA",null,null,{"$f":"3","v":3}]
[29243,29242,"723A",2,null,"Current phase 1 - 30th harmonic (rms)","unsigned integer",1,"mA",null,null,{"$f":"3","v":3}]
[29245,29244,"723C",2,null,"Current phase 1 - 31st harmonic (rms)","unsigned integer",1,"mA",null,null,{"$f":"3","v":3}]
[29247,29246,"723E",2,null,"Current phase 1 - 32nd harmonic (rms)","unsigned integer",1,"mA",null,null,{"$f":"3","v":3}]
[29249,29248,"7240",2,null,"Current phase 1 - 33rd harmonic (rms)","unsigned integer",1,"mA",null,null,{"$f":"3","v":3}]
[29251,29250,"7242",2,null,"Current phase 1 - 34th harmonic (rms)","unsigned integer",1,"mA",null,null,{"$f":"3","v":3}]
[29253,29252,"7244",2,null,"Current phase 1 - 35th harmonic (rms)","unsigned integer",1,"mA",null,null,{"$f":"3","v":3}]
[29255,29254,"7246",2,null,"Current phase 1 - 36th harmonic (rms)","unsigned integer",1,"mA",null,null,{"$f":"3","v":3}]
[29257,29256,"7248",2,null,"Current phase 1 - 37th harmonic (rms)","unsigned integer",1,"mA",null,null,{"$f":"3","v":3}]
[29259,29258,"724A",2,null,"Current phase 1 - 38th harmonic (rms)","unsigned integer",1,"mA",null,null,{"$f":"3","v":3}]
[29261,29260,"724C",2,null,"Current phase 1 - 39th harmonic (rms)","unsigned integer",1,"mA",null,null,{"$f":"3","v":3}]
[29263,29262,"724E",2,null,"Current phase 1 - 40th harmonic (rms)","unsigned integer",1,"mA",null,null,{"$f":"3","v":3}]
[29265,29264,"7250",2,null,"Current phase 1 - 41st harmonic (rms)","unsigned integer",1,"mA",null,null,{"$f":"3","v":3}]
[29267,29266,"7252",2,null,"Current phase 1 - 42nd harmonic (rms)","unsigned integer",1,"mA",null,null,{"$f":"3","v":3}]
[29269,29268,"7254",2,null,"Current phase 1 - 43rd harmonic (rms)","unsigned integer",1,"mA",null,null,{"$f":"3","v":3}]
[29271,29270,"7256",2,null,"Current phase 1 - 44th harmonic (rms)","unsigned integer",1,"mA",null,null,{"$f":"3","v":3}]
[29273,29272,"7258",2,null,"Current phase 1 - 45th harmonic (rms)","unsigned integer",1,"mA",null,null,{"$f":"3","v":3}]
[29275,29274,"725A",2,null,"Current phase 1 - 46th harmonic (rms)","unsigned integer",1,"mA",null,null,{"$f":"3","v":3}]
[29277,29276,"725C",2,null,"Current phase 1 - 47th harmonic (rms)","unsigned integer",1,"mA",null,null,{"$f":"3","v":3}]
[29279,29278,"725E",2,null,"Current phase 1 - 48th harmonic (rms)","unsigned integer",1,"mA",null,null,{"$f":"3","v":3}]
[29281,29280,"7260",2,null,"Current phase 1 - 49th harmonic (rms)","unsigned integer",1,"mA",null,null,{"$f":"3","v":3}]
[29283,29282,"7262",2,null,"Current phase 1 - 50th harmonic (rms)","unsigned integer",1,"mA",null,null,{"$f":"3","v":3}]
[]
[{"$f":"B505+1","v":29313},29312,7280,2,null,"Current phase 2 - 1st harmonic (rms) ","unsigned integer",1,"mA",null,null,{"$f":"3","v":3}]
[{"$f":"B506+1","v":29315},{"$f":"B505+D505","v":29314},{"$f":"DEC2HEX(B506)","v":"7282"},2,null,"Current phase 2 - 2nd harmonic (rms)","unsigned integer",1,"mA",null,null,{"$f":"3","v":3}]
[29317,29316,"7284",2,null,"Current phase 2 - 3rd harmonic (rms)","unsigned integer",1,"mA",null,null,{"$f":"3","v":3}]
[29319,29318,"7286",2,null,"Current phase 2 - 4th harmonic (rms)","unsigned integer",1,"mA",null,null,{"$f":"3","v":3}]
[29321,29320,"7288",2,null,"Current phase 2 - 5th harmonic (rms)","unsigned integer",1,"mA",null,null,{"$f":"3","v":3}]
[29323,29322,"728A",2,null,"Current phase 2 - 6th harmonic (rms)","unsigned integer",1,"mA",null,null,{"$f":"3","v":3}]
[29325,29324,"728C",2,null,"Current phase 2 - 7th harmonic (rms)","unsigned integer",1,"mA",null,null,{"$f":"3","v":3}]
[29327,29326,"728E",2,null,"Current phase 2 - 8th harmonic (rms)","unsigned integer",1,"mA",null,null,{"$f":"3","v":3}]
[29329,29328,"7290",2,null,"Current phase 2 - 9th harmonic (rms)","unsigned integer",1,"mA",null,null,{"$f":"3","v":3}]
[29331,29330,"7292",2,null,"Current phase 2 - 10th harmonic (rms)","unsigned integer",1,"mA",null,null,{"$f":"3","v":3}]
[29333,29332,"7294",2,null,"Current phase 2 - 11th harmonic (rms)","unsigned integer",1,"mA",null,null,{"$f":"3","v":3}]
[29335,29334,"7296",2,null,"Current phase 2 - 12th harmonic (rms)","unsigned integer",1,"mA",null,null,{"$f":"3","v":3}]
[29337,29336,"7298",2,null,"Current phase 2 - 13th harmonic (rms)","unsigned integer",1,"mA",null,null,{"$f":"3","v":3}]
[29339,29338,"729A",2,null,"Current phase 2 - 14th harmonic (rms)","unsigned integer",1,"mA",null,null,{"$f":"3","v":3}]
[29341,29340,"729C",2,null,"Current phase 2 - 15th harmonic (rms)","unsigned integer",1,"mA",null,null,{"$f":"3","v":3}]
[29343,29342,"729E",2,null,"Current phase 2 - 16th harmonic (rms)","unsigned integer",1,"mA",null,null,{"$f":"3","v":3}]
[29345,29344,"72A0",2,null,"Current phase 2 - 17th harmonic (rms)","unsigned integer",1,"mA",null,null,{"$f":"3","v":3}]
[29347,29346,"72A2",2,null,"Current phase 2 - 18th harmonic (rms)","unsigned integer",1,"mA",null,null,{"$f":"3","v":3}]
[29349,29348,"72A4",2,null,"Current phase 2 - 19th harmonic (rms)","unsigned integer",1,"mA",null,null,{"$f":"3","v":3}]
[29351,29350,"72A6",2,null,"Current phase 2 - 20th harmonic (rms)","unsigned integer",1,"mA",null,null,{"$f":"3","v":3}]
[29353,29352,"72A8",2,null,"Current phase 2 - 21st harmonic (rms)","unsigned integer",1,"mA",null,null,{"$f":"3","v":3}]
[29355,29354,"72AA",2,null,"Current phase 2 - 22nd harmonic (rms)","unsigned integer",1,"mA",null,null,{"$f":"3","v":3}]
[29357,29356,"72AC",2,null,"Current phase 2 - 23rd harmonic (rms)","unsigned integer",1,"mA",null,null,{"$f":"3","v":3}]
[29359,29358,"72AE",2,null,"Current phase 2 - 24th harmonic (rms)","unsigned integer",1,"mA",null,null,{"$f":"3","v":3}]
[29361,29360,"72B0",2,null,"Current phase 2 - 25th harmonic (rms)","unsigned integer",1,"mA",null,null,{"$f":"3","v":3}]
[29363,29362,"72B2",2,null,"Current phase 2 - 26th harmonic (rms)","unsigned integer",1,"mA",null,null,{"$f":"3","v":3}]
[29365,29364,"72B4",2,null,"Current phase 2 - 27th harmonic (rms)","unsigned integer",1,"mA",null,null,{"$f":"3","v":3}]
[29367,29366,"72B6",2,null,"Current phase 2 - 28th harmonic (rms)","unsigned integer",1,"mA",null,null,{"$f":"3","v":3}]
[29369,29368,"72B8",2,null,"Current phase 2 - 29th harmonic (rms)","unsigned integer",1,"mA",null,null,{"$f":"3","v":3}]
[29371,29370,"72BA",2,null,"Current phase 2 - 30th harmonic (rms)","unsigned integer",1,"mA",null,null,{"$f":"3","v":3}]
[29373,29372,"72BC",2,null,"Current phase 2 - 31st harmonic (rms)","unsigned integer",1,"mA",null,null,{"$f":"3","v":3}]
[29375,29374,"72BE",2,null,"Current phase 2 - 32nd harmonic (rms)","unsigned integer",1,"mA",null,null,{"$f":"3","v":3}]
[29377,29376,"72C0",2,null,"Current phase 2 - 33rd harmonic (rms)","unsigned integer",1,"mA",null,null,{"$f":"3","v":3}]
[29379,29378,"72C2",2,null,"Current phase 2 - 34th harmonic (rms)","unsigned integer",1,"mA",null,null,{"$f":"3","v":3}]
[29381,29380,"72C4",2,null,"Current phase 2 - 35th harmonic (rms)","unsigned integer",1,"mA",null,null,{"$f":"3","v":3}]
[29383,29382,"72C6",2,null,"Current phase 2 - 36th harmonic (rms)","unsigned integer",1,"mA",null,null,{"$f":"3","v":3}]
[29385,29384,"72C8",2,null,"Current phase 2 - 37th harmonic (rms)","unsigned integer",1,"mA",null,null,{"$f":"3","v":3}]
[29387,29386,"72CA",2,null,"Current phase 2 - 38th harmonic (rms)","unsigned integer",1,"mA",null,null,{"$f":"3","v":3}]
[29389,29388,"72CC",2,null,"Current phase 2 - 39th harmonic (rms)","unsigned integer",1,"mA",null,null,{"$f":"3","v":3}]
[29391,29390,"72CE",2,null,"Current phase 2 - 40th harmonic (rms)","unsigned integer",1,"mA",null,null,{"$f":"3","v":3}]
[29393,29392,"72D0",2,null,"Current phase 2 - 41st harmonic (rms)","unsigned integer",1,"mA",null,null,{"$f":"3","v":3}]
[29395,29394,"72D2",2,null,"Current phase 2 - 42nd harmonic (rms)","unsigned integer",1,"mA",null,null,{"$f":"3","v":3}]
[29397,29396,"72D4",2,null,"Current phase 2 - 43rd harmonic (rms)","unsigned integer",1,"mA",null,null,{"$f":"3","v":3}]
[29399,29398,"72D6",2,null,"Current phase 2 - 44th harmonic (rms)","unsigned integer",1,"mA",null,null,{"$f":"3","v":3}]
[29401,29400,"72D8",2,null,"Current phase 2 - 45th harmonic (rms)","unsigned integer",1,"mA",null,null,{"$f":"3","v":3}]
[29403,29402,"72DA",2,null,"Current phase 2 - 46th harmonic (rms)","unsigned integer",1,"mA",null,null,{"$f":"3","v":3}]
[29405,29404,"72DC",2,null,"Current phase 2 - 47th harmonic (rms)","unsigned integer",1,"mA",null,null,{"$f":"3","v":3}]
[29407,29406,"72DE",2,null,"Current phase 2 - 48th harmonic (rms)","unsigned integer",1,"mA",null,null,{"$f":"3","v":3}]
[29409,29408,"72E0",2,null,"Current phase 2 - 49th harmonic (rms)","unsigned integer",1,"mA",null,null,{"$f":"3","v":3}]
[29411,29410,"72E2",2,null,"Current phase 2 - 50th harmonic (rms)","unsigned integer",1,"mA",null,null,{"$f":"3","v":3}]
[{"$f":"B555+1","v":29441},29440,7300,{"$f":"SUM(D556:D656)","v":200}]
[{"$f":"B556+1","v":29441},29440,7300,2,null,"Current phase 3 - 1st harmonic (rms) ","unsigned integer",1,"mA",null,null,{"$f":"3","v":3}]
[29443,{"$f":"B556+D556","v":29442},{"$f":"DEC2HEX(B557)","v":"7302"},2,null,"Current phase 3 - 2nd harmonic (rms)","unsigned integer",1,"mA",null,null,{"$f":"3","v":3}]
[29445,29444,"7304",2,null,"Current phase 3 - 3rd harmonic (rms)","unsigned integer",1,"mA",null,null,{"$f":"3","v":3}]
[29447,29446,"7306",2,null,"Current phase 3 - 4th harmonic (rms)","unsigned integer",1,"mA",null,null,{"$f":"3","v":3}]
[29449,29448,"7308",2,null,"Current phase 3 - 5th harmonic (rms)","unsigned integer",1,"mA",null,null,{"$f":"3","v":3}]
[29451,29450,"730A",2,null,"Current phase 3 - 6th harmonic (rms)","unsigned integer",1,"mA",null,null,{"$f":"3","v":3}]
[29453,29452,"730C",2,null,"Current phase 3 - 7th harmonic (rms)","unsigned integer",1,"mA",null,null,{"$f":"3","v":3}]
[29455,29454,"730E",2,null,"Current phase 3 - 8th harmonic (rms)","unsigned integer",1,"mA",null,null,{"$f":"3","v":3}]
[29457,29456,"7310",2,null,"Current phase 3 - 9th harmonic (rms)","unsigned integer",1,"mA",null,null,{"$f":"3","v":3}]
[29459,29458,"7312",2,null,"Current phase 3 - 10th harmonic (rms)","unsigned integer",1,"mA",null,null,{"$f":"3","v":3}]
[29461,29460,"7314",2,null,"Current phase 3 - 11th harmonic (rms)","unsigned integer",1,"mA",null,null,{"$f":"3","v":3}]
[29463,29462,"7316",2,null,"Current phase 3 - 12th harmonic (rms)","unsigned integer",1,"mA",null,null,{"$f":"3","v":3}]
[29465,29464,"7318",2,null,"Current phase 3 - 13th harmonic (rms)","unsigned integer",1,"mA",null,null,{"$f":"3","v":3}]
[29467,29466,"731A",2,null,"Current phase 3 - 14th harmonic (rms)","unsigned integer",1,"mA",null,null,{"$f":"3","v":3}]
[29469,29468,"731C",2,null,"Current phase 3 - 15th harmonic (rms)","unsigned integer",1,"mA",null,null,{"$f":"3","v":3}]
[29471,29470,"731E",2,null,"Current phase 3 - 16th harmonic (rms)","unsigned integer",1,"mA",null,null,{"$f":"3","v":3}]
[29473,29472,"7320",2,null,"Current phase 3 - 17th harmonic (rms)","unsigned integer",1,"mA",null,null,{"$f":"3","v":3}]
[29475,29474,"7322",2,null,"Current phase 3 - 18th harmonic (rms)","unsigned integer",1,"mA",null,null,{"$f":"3","v":3}]
[29477,29476,"7324",2,null,"Current phase 3 - 19th harmonic (rms)","unsigned integer",1,"mA",null,null,{"$f":"3","v":3}]
[29479,29478,"7326",2,null,"Current phase 3 - 20th harmonic (rms)","unsigned integer",1,"mA",null,null,{"$f":"3","v":3}]
[29481,29480,"7328",2,null,"Current phase 3 - 21st harmonic (rms)","unsigned integer",1,"mA",null,null,{"$f":"3","v":3}]
[29483,29482,"732A",2,null,"Current phase 3 - 22nd harmonic (rms)","unsigned integer",1,"mA",null,null,{"$f":"3","v":3}]
[29485,29484,"732C",2,null,"Current phase 3 - 23rd harmonic (rms)","unsigned integer",1,"mA",null,null,{"$f":"3","v":3}]
[29487,29486,"732E",2,null,"Current phase 3 - 24th harmonic (rms)","unsigned integer",1,"mA",null,null,{"$f":"3","v":3}]
[29489,29488,"7330",2,null,"Current phase 3 - 25th harmonic (rms)","unsigned integer",1,"mA",null,null,{"$f":"3","v":3}]
[29491,29490,"7332",2,null,"Current phase 3 - 26th harmonic (rms)","unsigned integer",1,"mA",null,null,{"$f":"3","v":3}]
[29493,29492,"7334",2,null,"Current phase 3 - 27th harmonic (rms)","unsigned integer",1,"mA",null,null,{"$f":"3","v":3}]
[29495,29494,"7336",2,null,"Current phase 3 - 28th harmonic (rms)","unsigned integer",1,"mA",null,null,{"$f":"3","v":3}]
[29497,29496,"7338",2,null,"Current phase 3 - 29th harmonic (rms)","unsigned integer",1,"mA",null,null,{"$f":"3","v":3}]
[29499,29498,"733A",2,null,"Current phase 3 - 30th harmonic (rms)","unsigned integer",1,"mA",null,null,{"$f":"3","v":3}]
[29501,29500,"733C",2,null,"Current phase 3 - 31st harmonic (rms)","unsigned integer",1,"mA",null,null,{"$f":"3","v":3}]
[29503,29502,"733E",2,null,"Current phase 3 - 32nd harmonic (rms)","unsigned integer",1,"mA",null,null,{"$f":"3","v":3}]
[29505,29504,"7340",2,null,"Current phase 3 - 33rd harmonic (rms)","unsigned integer",1,"mA",null,null,{"$f":"3","v":3}]
[29507,29506,"7342",2,null,"Current phase 3 - 34th harmonic (rms)","unsigned integer",1,"mA",null,null,{"$f":"3","v":3}]
[29509,29508,"7344",2,null,"Current phase 3 - 35th harmonic (rms)","unsigned integer",1,"mA",null,null,{"$f":"3","v":3}]
[29511,29510,"7346",2,null,"Current phase 3 - 36th harmonic (rms)","unsigned integer",1,"mA",null,null,{"$f":"3","v":3}]
[29513,29512,"7348",2,null,"Current phase 3 - 37th harmonic (rms)","unsigned integer",1,"mA",null,null,{"$f":"3","v":3}]
[29515,29514,"734A",2,null,"Current phase 3 - 38th harmonic (rms)","unsigned integer",1,"mA",null,null,{"$f":"3","v":3}]
[29517,29516,"734C",2,null,"Current phase 3 - 39th harmonic (rms)","unsigned integer",1,"mA",null,null,{"$f":"3","v":3}]
[29519,29518,"734E",2,null,"Current phase 3 - 40th harmonic (rms)","unsigned integer",1,"mA",null,null,{"$f":"3","v":3}]
[29521,29520,"7350",2,null,"Current phase 3 - 41st harmonic (rms)","unsigned integer",1,"mA",null,null,{"$f":"3","v":3}]
[29523,29522,"7352",2,null,"Current phase 3 - 42nd harmonic (rms)","unsigned integer",1,"mA",null,null,{"$f":"3","v":3}]
[29525,29524,"7354",2,null,"Current phase 3 - 43rd harmonic (rms)","unsigned integer",1,"mA",null,null,{"$f":"3","v":3}]
[29527,29526,"7356",2,null,"Current phase 3 - 44th harmonic (rms)","unsigned integer",1,"mA",null,null,{"$f":"3","v":3}]
[29529,29528,"7358",2,null,"Current phase 3 - 45th harmonic (rms)","unsigned integer",1,"mA",null,null,{"$f":"3","v":3}]
[29531,29530,"735A",2,null,"Current phase 3 - 46th harmonic (rms)","unsigned integer",1,"mA",null,null,{"$f":"3","v":3}]
[29533,29532,"735C",2,null,"Current phase 3 - 47th harmonic (rms)","unsigned integer",1,"mA",null,null,{"$f":"3","v":3}]
[29535,29534,"735E",2,null,"Current phase 3 - 48th harmonic (rms)","unsigned integer",1,"mA",null,null,{"$f":"3","v":3}]
[29537,29536,"7360",2,null,"Current phase 3 - 49th harmonic (rms)","unsigned integer",1,"mA",null,null,{"$f":"3","v":3}]
[29539,29538,"7362",2,null,"Current phase 3 - 50th harmonic (rms)","unsigned integer",1,"mA",null,null,{"$f":"3","v":3}]
[]
[{"$f":"B607+1","v":29569},29568,7380,2,null,"Voltage phase 1 - 1st harmonic (rms) ","unsigned integer",1,"mV",null,"See Note 3",{"$f":"3","v":3}]
[29571,{"$f":"B607+D607","v":29570},{"$f":"DEC2HEX(B608)","v":"7382"},2,null,"Voltage phase 1 - 2nd harmonic (rms)","unsigned integer",1,"mV",null,"See Note 3",{"$f":"3","v":3}]
[29573,29572,"7384",2,null,"Voltage phase 1 - 3rd harmonic (rms)","unsigned integer",1,"mV",null,"See Note 3",{"$f":"3","v":3}]
[29575,29574,"7386",2,null,"Voltage phase 1 - 4th harmonic (rms)","unsigned integer",1,"mV",null,"See Note 3",{"$f":"3","v":3}]
[29577,29576,"7388",2,null,"Voltage phase 1 - 5th harmonic (rms)","unsigned integer",1,"mV",null,"See Note 3",{"$f":"3","v":3}]
[29579,29578,"738A",2,null,"Voltage phase 1 - 6th harmonic (rms)","unsigned integer",1,"mV",null,"See Note 3",{"$f":"3","v":3}]
[29581,29580,"738C",2,null,"Voltage phase 1 - 7th harmonic (rms)","unsigned integer",1,"mV",null,"See Note 3",{"$f":"3","v":3}]
[29583,29582,"738E",2,null,"Voltage phase 1 - 8th harmonic (rms)","unsigned integer",1,"mV",null,"See Note 3",{"$f":"3","v":3}]
[29585,29584,"7390",2,null,"Voltage phase 1 - 9th harmonic (rms)","unsigned integer",1,"mV",null,"See Note 3",{"$f":"3","v":3}]
[29587,29586,"7392",2,null,"Voltage phase 1 - 10th harmonic (rms)","unsigned integer",1,"mV",null,"See Note 3",{"$f":"3","v":3}]
[29589,29588,"7394",2,null,"Voltage phase 1 - 11th harmonic (rms)","unsigned integer",1,"mV",null,"See Note 3",{"$f":"3","v":3}]
[29591,29590,"7396",2,null,"Voltage phase 1 - 12th harmonic (rms)","unsigned integer",1,"mV",null,"See Note 3",{"$f":"3","v":3}]
[29593,29592,"7398",2,null,"Voltage phase 1 - 13th harmonic (rms)","unsigned integer",1,"mV",null,"See Note 3",{"$f":"3","v":3}]
[29595,29594,"739A",2,null,"Voltage phase 1 - 14th harmonic (rms)","unsigned integer",1,"mV",null,"See Note 3",{"$f":"3","v":3}]
[29597,29596,"739C",2,null,"Voltage phase 1 - 15th harmonic (rms)","unsigned integer",1,"mV",null,"See Note 3",{"$f":"3","v":3}]
[29599,29598,"739E",2,null,"Voltage phase 1 - 16th harmonic (rms)","unsigned integer",1,"mV",null,"See Note 3",{"$f":"3","v":3}]
[29601,29600,"73A0",2,null,"Voltage phase 1 - 17th harmonic (rms)","unsigned integer",1,"mV",null,"See Note 3",{"$f":"3","v":3}]
[29603,29602,"73A2",2,null,"Voltage phase 1 - 18th harmonic (rms)","unsigned integer",1,"mV",null,"See Note 3",{"$f":"3","v":3}]
[29605,29604,"73A4",2,null,"Voltage phase 1 - 19th harmonic (rms)","unsigned integer",1,"mV",null,"See Note 3",{"$f":"3","v":3}]
[29607,29606,"73A6",2,null,"Voltage phase 1 - 20th harmonic (rms)","unsigned integer",1,"mV",null,"See Note 3",{"$f":"3","v":3}]
[29609,29608,"73A8",2,null,"Voltage phase 1 - 21st harmonic (rms)","unsigned integer",1,"mV",null,"See Note 3",{"$f":"3","v":3}]
[29611,29610,"73AA",2,null,"Voltage phase 1 - 22nd harmonic (rms)","unsigned integer",1,"mV",null,"See Note 3",{"$f":"3","v":3}]
[29613,29612,"73AC",2,null,"Voltage phase 1 - 23rd harmonic (rms)","unsigned integer",1,"mV",null,"See Note 3",{"$f":"3","v":3}]
[29615,29614,"73AE",2,null,"Voltage phase 1 - 24th harmonic (rms)","unsigned integer",1,"mV",null,"See Note 3",{"$f":"3","v":3}]
[29617,29616,"73B0",2,null,"Voltage phase 1 - 25th harmonic (rms)","unsigned integer",1,"mV",null,"See Note 3",{"$f":"3","v":3}]
[29619,29618,"73B2",2,null,"Voltage phase 1 - 26th harmonic (rms)","unsigned integer",1,"mV",null,"See Note 3",{"$f":"3","v":3}]
[29621,29620,"73B4",2,null,"Voltage phase 1 - 27th harmonic (rms)","unsigned integer",1,"mV",null,"See Note 3",{"$f":"3","v":3}]
[29623,29622,"73B6",2,null,"Voltage phase 1 - 28th harmonic (rms)","unsigned integer",1,"mV",null,"See Note 3",{"$f":"3","v":3}]
[29625,29624,"73B8",2,null,"Voltage phase 1 - 29th harmonic (rms)","unsigned integer",1,"mV",null,"See Note 3",{"$f":"3","v":3}]
[29627,29626,"73BA",2,null,"Voltage phase 1 - 30th harmonic (rms)","unsigned integer",1,"mV",null,"See Note 3",{"$f":"3","v":3}]
[29629,29628,"73BC",2,null,"Voltage phase 1 - 31st harmonic (rms)","unsigned integer",1,"mV",null,"See Note 3",{"$f":"3","v":3}]
[29631,29630,"73BE",2,null,"Voltage phase 1 - 32nd harmonic (rms)","unsigned integer",1,"mV",null,"See Note 3",{"$f":"3","v":3}]
[29633,29632,"73C0",2,null,"Voltage phase 1 - 33rd harmonic (rms)","unsigned integer",1,"mV",null,"See Note 3",{"$f":"3","v":3}]
[29635,29634,"73C2",2,null,"Voltage phase 1 - 34th harmonic (rms)","unsigned integer",1,"mV",null,"See Note 3",{"$f":"3","v":3}]
[29637,29636,"73C4",2,null,"Voltage phase 1 - 35th harmonic (rms)","unsigned integer",1,"mV",null,"See Note 3",{"$f":"3","v":3}]
[29639,29638,"73C6",2,null,"Voltage phase 1 - 36th harmonic (rms)","unsigned integer",1,"mV",null,"See Note 3",{"$f":"3","v":3}]
[29641,29640,"73C8",2,null,"Voltage phase 1 - 37th harmonic (rms)","unsigned integer",1,"mV",null,"See Note 3",{"$f":"3","v":3}]
[29643,29642,"73CA",2,null,"Voltage phase 1 - 38th harmonic (rms)","unsigned integer",1,"mV",null,"See Note 3",{"$f":"3","v":3}]
[29645,29644,"73CC",2,null,"Voltage phase 1 - 39th harmonic (rms)","unsigned integer",1,"mV",null,"See Note 3",{"$f":"3","v":3}]
[29647,29646,"73CE",2,null,"Voltage phase 1 - 40th harmonic (rms)","unsigned integer",1,"mV",null,"See Note 3",{"$f":"3","v":3}]
[29649,29648,"73D0",2,null,"Voltage phase 1 - 41st harmonic (rms)","unsigned integer",1,"mV",null,"See Note 3",{"$f":"3","v":3}]
[29651,29650,"73D2",2,null,"Voltage phase 1 - 42nd harmonic (rms)","unsigned integer",1,"mV",null,"See Note 3",{"$f":"3","v":3}]
[29653,29652,"73D4",2,null,"Voltage phase 1 - 43rd harmonic (rms)","unsigned integer",1,"mV",null,"See Note 3",{"$f":"3","v":3}]
[29655,29654,"73D6",2,null,"Voltage phase 1 - 44th harmonic (rms)","unsigned integer",1,"mV",null,"See Note 3",{"$f":"3","v":3}]
[29657,29656,"73D8",2,null,"Voltage phase 1 - 45th harmonic (rms)","unsigned integer",1,"mV",null,"See Note 3",{"$f":"3","v":3}]
[29659,29658,"73DA",2,null,"Voltage phase 1 - 46th harmonic (rms)","unsigned integer",1,"mV",null,"See Note 3",{"$f":"3","v":3}]
[29661,29660,"73DC",2,null,"Voltage phase 1 - 47th harmonic (rms)","unsigned integer",1,"mV",null,"See Note 3",{"$f":"3","v":3}]
[29663,29662,"73DE",2,null,"Voltage phase 1 - 48th harmonic (rms)","unsigned integer",1,"mV",null,"See Note 3",{"$f":"3","v":3}]
[29665,29664,"73E0",2,null,"Voltage phase 1 - 49th harmonic (rms)","unsigned integer",1,"mV",null,"See Note 3",{"$f":"3","v":3}]
[29667,29666,{"$f":"DEC2HEX(B656)","v":"73E2"},2,null,"Voltage phase 1 - 50th harmonic (rms)","unsigned integer",1,"mV",null,"See Note 3",{"$f":"3","v":3}]
[{"$f":"B657+1","v":29697},29696,7400,{"$f":"SUM(D658:D758)","v":200}]
[{"$f":"B658+1","v":29697},29696,7400,2,null,"Voltage phase 2 - 1st harmonic (rms) ","unsigned integer",1,"mV",null,"See Note 3",{"$f":"3","v":3}]
[29699,{"$f":"B658+D658","v":29698},{"$f":"DEC2HEX(B659)","v":"7402"},2,null,"Voltage phase 2 - 2nd harmonic (rms)","unsigned integer",1,"mV",null,"See Note 3",{"$f":"3","v":3}]
[29701,29700,"7404",2,null,"Voltage phase 2 - 3rd harmonic (rms)","unsigned integer",1,"mV",null,"See Note 3",{"$f":"3","v":3}]
[29703,29702,"7406",2,null,"Voltage phase 2 - 4th harmonic (rms)","unsigned integer",1,"mV",null,"See Note 3",{"$f":"3","v":3}]
[29705,29704,"7408",2,null,"Voltage phase 2 - 5th harmonic (rms)","unsigned integer",1,"mV",null,"See Note 3",{"$f":"3","v":3}]
[29707,29706,"740A",2,null,"Voltage phase 2 - 6th harmonic (rms)","unsigned integer",1,"mV",null,"See Note 3",{"$f":"3","v":3}]
[29709,29708,"740C",2,null,"Voltage phase 2 - 7th harmonic (rms)","unsigned integer",1,"mV",null,"See Note 3",{"$f":"3","v":3}]
[29711,29710,"740E",2,null,"Voltage phase 2 - 8th harmonic (rms)","unsigned integer",1,"mV",null,"See Note 3",{"$f":"3","v":3}]
[29713,29712,"7410",2,null,"Voltage phase 2 - 9th harmonic (rms)","unsigned integer",1,"mV",null,"See Note 3",{"$f":"3","v":3}]
[29715,29714,"7412",2,null,"Voltage phase 2 - 10th harmonic (rms)","unsigned integer",1,"mV",null,"See Note 3",{"$f":"3","v":3}]
[29717,29716,"7414",2,null,"Voltage phase 2 - 11th harmonic (rms)","unsigned integer",1,"mV",null,"See Note 3",{"$f":"3","v":3}]
[29719,29718,"7416",2,null,"Voltage phase 2 - 12th harmonic (rms)","unsigned integer",1,"mV",null,"See Note 3",{"$f":"3","v":3}]
[29721,29720,"7418",2,null,"Voltage phase 2 - 13th harmonic (rms)","unsigned integer",1,"mV",null,"See Note 3",{"$f":"3","v":3}]
[29723,29722,"741A",2,null,"Voltage phase 2 - 14th harmonic (rms)","unsigned integer",1,"mV",null,"See Note 3",{"$f":"3","v":3}]
[29725,29724,"741C",2,null,"Voltage phase 2 - 15th harmonic (rms)","unsigned integer",1,"mV",null,"See Note 3",{"$f":"3","v":3}]
[29727,29726,"741E",2,null,"Voltage phase 2 - 16th harmonic (rms)","unsigned integer",1,"mV",null,"See Note 3",{"$f":"3","v":3}]
[29729,29728,"7420",2,null,"Voltage phase 2 - 17th harmonic (rms)","unsigned integer",1,"mV",null,"See Note 3",{"$f":"3","v":3}]
[29731,29730,"7422",2,null,"Voltage phase 2 - 18th harmonic (rms)","unsigned integer",1,"mV",null,"See Note 3",{"$f":"3","v":3}]
[29733,29732,"7424",2,null,"Voltage phase 2 - 19th harmonic (rms)","unsigned integer",1,"mV",null,"See Note 3",{"$f":"3","v":3}]
[29735,29734,"7426",2,null,"Voltage phase 2 - 20th harmonic (rms)","unsigned integer",1,"mV",null,"See Note 3",{"$f":"3","v":3}]
[29737,29736,"7428",2,null,"Voltage phase 2 - 21st harmonic (rms)","unsigned integer",1,"mV",null,"See Note 3",{"$f":"3","v":3}]
[29739,29738,"742A",2,null,"Voltage phase 2 - 22nd harmonic (rms)","unsigned integer",1,"mV",null,"See Note 3",{"$f":"3","v":3}]
[29741,29740,"742C",2,null,"Voltage phase 2 - 23rd harmonic (rms)","unsigned integer",1,"mV",null,"See Note 3",{"$f":"3","v":3}]
[29743,29742,"742E",2,null,"Voltage phase 2 - 24th harmonic (rms)","unsigned integer",1,"mV",null,"See Note 3",{"$f":"3","v":3}]
[29745,29744,"7430",2,null,"Voltage phase 2 - 25th harmonic (rms)","unsigned integer",1,"mV",null,"See Note 3",{"$f":"3","v":3}]
[29747,29746,"7432",2,null,"Voltage phase 2 - 26th harmonic (rms)","unsigned integer",1,"mV",null,"See Note 3",{"$f":"3","v":3}]
[29749,29748,"7434",2,null,"Voltage phase 2 - 27th harmonic (rms)","unsigned integer",1,"mV",null,"See Note 3",{"$f":"3","v":3}]
[29751,29750,"7436",2,null,"Voltage phase 2 - 28th harmonic (rms)","unsigned integer",1,"mV",null,"See Note 3",{"$f":"3","v":3}]
[29753,29752,"7438",2,null,"Voltage phase 2 - 29th harmonic (rms)","unsigned integer",1,"mV",null,"See Note 3",{"$f":"3","v":3}]
[29755,29754,"743A",2,null,"Voltage phase 2 - 30th harmonic (rms)","unsigned integer",1,"mV",null,"See Note 3",{"$f":"3","v":3}]
[29757,29756,"743C",2,null,"Voltage phase 2 - 31st harmonic (rms)","unsigned integer",1,"mV",null,"See Note 3",{"$f":"3","v":3}]
[29759,29758,"743E",2,null,"Voltage phase 2 - 32nd harmonic (rms)","unsigned integer",1,"mV",null,"See Note 3",{"$f":"3","v":3}]
[29761,29760,"7440",2,null,"Voltage phase 2 - 33rd harmonic (rms)","unsigned integer",1,"mV",null,"See Note 3",{"$f":"3","v":3}]
[29763,29762,"7442",2,null,"Voltage phase 2 - 34th harmonic (rms)","unsigned integer",1,"mV",null,"See Note 3",{"$f":"3","v":3}]
[29765,29764,"7444",2,null,"Voltage phase 2 - 35th harmonic (rms)","unsigned integer",1,"mV",null,"See Note 3",{"$f":"3","v":3}]
[29767,29766,"7446",2,null,"Voltage phase 2 - 36th harmonic (rms)","unsigned integer",1,"mV",null,"See Note 3",{"$f":"3","v":3}]
[29769,29768,"7448",2,null,"Voltage phase 2 - 37th harmonic (rms)","unsigned integer",1,"mV",null,"See Note 3",{"$f":"3","v":3}]
[29771,29770,"744A",2,null,"Voltage phase 2 - 38th harmonic (rms)","unsigned integer",1,"mV",null,"See Note 3",{"$f":"3","v":3}]
[29773,29772,"744C",2,null,"Voltage phase 2 - 39th harmonic (rms)","unsigned integer",1,"mV",null,"See Note 3",{"$f":"3","v":3}]
[29775,29774,"744E",2,null,"Voltage phase 2 - 40th harmonic (rms)","unsigned integer",1,"mV",null,"See Note 3",{"$f":"3","v":3}]
[29777,29776,"7450",2,null,"Voltage phase 2 - 41st harmonic (rms)","unsigned integer",1,"mV",null,"See Note 3",{"$f":"3","v":3}]
[29779,29778,"7452",2,null,"Voltage phase 2 - 42nd harmonic (rms)","unsigned integer",1,"mV",null,"See Note 3",{"$f":"3","v":3}]
[29781,29780,"7454",2,null,"Voltage phase 2 - 43rd harmonic (rms)","unsigned integer",1,"mV",null,"See Note 3",{"$f":"3","v":3}]
[29783,29782,"7456",2,null,"Voltage phase 2 - 44th harmonic (rms)","unsigned integer",1,"mV",null,"See Note 3",{"$f":"3","v":3}]
[29785,29784,"7458",2,null,"Voltage phase 2 - 45th harmonic (rms)","unsigned integer",1,"mV",null,"See Note 3",{"$f":"3","v":3}]
[29787,29786,"745A",2,null,"Voltage phase 2 - 46th harmonic (rms)","unsigned integer",1,"mV",null,"See Note 3",{"$f":"3","v":3}]
[29789,29788,"745C",2,null,"Voltage phase 2 - 47th harmonic (rms)","unsigned integer",1,"mV",null,"See Note 3",{"$f":"3","v":3}]
[29791,29790,"745E",2,null,"Voltage phase 2 - 48th harmonic (rms)","unsigned integer",1,"mV",null,"See Note 3",{"$f":"3","v":3}]
[29793,29792,"7460",2,null,"Voltage phase 2 - 49th harmonic (rms)","unsigned integer",1,"mV",null,"See Note 3",{"$f":"3","v":3}]
[29795,29794,{"$f":"DEC2HEX(B707)","v":"7462"},2,null,"Voltage phase 2 - 50th harmonic (rms)","unsigned integer",1,"mV",null,"See Note 3",{"$f":"3","v":3}]
[]
[{"$f":"B709+1","v":29825},29824,7480,2,null,"Voltage phase 3 - 1st harmonic (rms) ","unsigned integer",1,"mV",null,"See Note 3",{"$f":"3","v":3}]
[29827,{"$f":"B709+D709","v":29826},{"$f":"DEC2HEX(B710)","v":"7482"},2,null,"Voltage phase 3 - 2nd harmonic (rms)","unsigned integer",1,"mV",null,"See Note 3",{"$f":"3","v":3}]
[29829,29828,"7484",2,null,"Voltage phase 3 - 3rd harmonic (rms)","unsigned integer",1,"mV",null,"See Note 3",{"$f":"3","v":3}]
[29831,29830,"7486",2,null,"Voltage phase 3 - 4th harmonic (rms)","unsigned integer",1,"mV",null,"See Note 3",{"$f":"3","v":3}]
[29833,29832,"7488",2,null,"Voltage phase 3 - 5th harmonic (rms)","unsigned integer",1,"mV",null,"See Note 3",{"$f":"3","v":3}]
[29835,29834,"748A",2,null,"Voltage phase 3 - 6th harmonic (rms)","unsigned integer",1,"mV",null,"See Note 3",{"$f":"3","v":3}]
[29837,29836,"748C",2,null,"Voltage phase 3 - 7th harmonic (rms)","unsigned integer",1,"mV",null,"See Note 3",{"$f":"3","v":3}]
[29839,29838,"748E",2,null,"Voltage phase 3 - 8th harmonic (rms)","unsigned integer",1,"mV",null,"See Note 3",{"$f":"3","v":3}]
[29841,29840,"7490",2,null,"Voltage phase 3 - 9th harmonic (rms)","unsigned integer",1,"mV",null,"See Note 3",{"$f":"3","v":3}]
[29843,29842,"7492",2,null,"Voltage phase 3 - 10th harmonic (rms)","unsigned integer",1,"mV",null,"See Note 3",{"$f":"3","v":3}]
[29845,29844,"7494",2,null,"Voltage phase 3 - 11th harmonic (rms)","unsigned integer",1,"mV",null,"See Note 3",{"$f":"3","v":3}]
[29847,29846,"7496",2,null,"Voltage phase 3 - 12th harmonic (rms)","unsigned integer",1,"mV",null,"See Note 3",{"$f":"3","v":3}]
[29849,29848,"7498",2,null,"Voltage phase 3 - 13th harmonic (rms)","unsigned integer",1,"mV",null,"See Note 3",{"$f":"3","v":3}]
[29851,29850,"749A",2,null,"Voltage phase 3 - 14th harmonic (rms)","unsigned integer",1,"mV",null,"See Note 3",{"$f":"3","v":3}]
[29853,29852,"749C",2,null,"Voltage phase 3 - 15th harmonic (rms)","unsigned integer",1,"mV",null,"See Note 3",{"$f":"3","v":3}]
[29855,29854,"749E",2,null,"Voltage phase 3 - 16th harmonic (rms)","unsigned integer",1,"mV",null,"See Note 3",{"$f":"3","v":3}]
[29857,29856,"74A0",2,null,"Voltage phase 3 - 17th harmonic (rms)","unsigned integer",1,"mV",null,"See Note 3",{"$f":"3","v":3}]
[29859,29858,"74A2",2,null,"Voltage phase 3 - 18th harmonic (rms)","unsigned integer",1,"mV",null,"See Note 3",{"$f":"3","v":3}]
[29861,29860,"74A4",2,null,"Voltage phase 3 - 19th harmonic (rms)","unsigned integer",1,"mV",null,"See Note 3",{"$f":"3","v":3}]
[29863,29862,"74A6",2,null,"Voltage phase 3 - 20th harmonic (rms)","unsigned integer",1,"mV",null,"See Note 3",{"$f":"3","v":3}]
[29865,29864,"74A8",2,null,"Voltage phase 3 - 21st harmonic (rms)","unsigned integer",1,"mV",null,"See Note 3",{"$f":"3","v":3}]
[29867,29866,"74AA",2,null,"Voltage phase 3 - 22nd harmonic (rms)","unsigned integer",1,"mV",null,"See Note 3",{"$f":"3","v":3}]
[29869,29868,"74AC",2,null,"Voltage phase 3 - 23rd harmonic (rms)","unsigned integer",1,"mV",null,"See Note 3",{"$f":"3","v":3}]
[29871,29870,"74AE",2,null,"Voltage phase 3 - 24th harmonic (rms)","unsigned integer",1,"mV",null,"See Note 3",{"$f":"3","v":3}]
[29873,29872,"74B0",2,null,"Voltage phase 3 - 25th harmonic (rms)","unsigned integer",1,"mV",null,"See Note 3",{"$f":"3","v":3}]
[29875,29874,"74B2",2,null,"Voltage phase 3 - 26th harmonic (rms)","unsigned integer",1,"mV",null,"See Note 3",{"$f":"3","v":3}]
[29877,29876,"74B4",2,null,"Voltage phase 3 - 27th harmonic (rms)","unsigned integer",1,"mV",null,"See Note 3",{"$f":"3","v":3}]
[29879,29878,"74B6",2,null,"Voltage phase 3 - 28th harmonic (rms)","unsigned integer",1,"mV",null,"See Note 3",{"$f":"3","v":3}]
[29881,29880,"74B8",2,null,"Voltage phase 3 - 29th harmonic (rms)","unsigned integer",1,"mV",null,"See Note 3",{"$f":"3","v":3}]
[29883,29882,"74BA",2,null,"Voltage phase 3 - 30th harmonic (rms)","unsigned integer",1,"mV",null,"See Note 3",{"$f":"3","v":3}]
[29885,29884,"74BC",2,null,"Voltage phase 3 - 31st harmonic (rms)","unsigned integer",1,"mV",null,"See Note 3",{"$f":"3","v":3}]
[29887,29886,"74BE",2,null,"Voltage phase 3 - 32nd harmonic (rms)","unsigned integer",1,"mV",null,"See Note 3",{"$f":"3","v":3}]
[29889,29888,"74C0",2,null,"Voltage phase 3 - 33rd harmonic (rms)","unsigned integer",1,"mV",null,"See Note 3",{"$f":"3","v":3}]
[29891,29890,"74C2",2,null,"Voltage phase 3 - 34th harmonic (rms)","unsigned integer",1,"mV",null,"See Note 3",{"$f":"3","v":3}]
[29893,29892,"74C4",2,null,"Voltage phase 3 - 35th harmonic (rms)","unsigned integer",1,"mV",null,"See Note 3",{"$f":"3","v":3}]
[29895,29894,"74C6",2,null,"Voltage phase 3 - 36th harmonic (rms)","unsigned integer",1,"mV",null,"See Note 3",{"$f":"3","v":3}]
[29897,29896,"74C8",2,null,"Voltage phase 3 - 37th harmonic (rms)","unsigned integer",1,"mV",null,"See Note 3",{"$f":"3","v":3}]
[29899,29898,"74CA",2,null,"Voltage phase 3 - 38th harmonic (rms)","unsigned integer",1,"mV",null,"See Note 3",{"$f":"3","v":3}]
[29901,29900,"74CC",2,null,"Voltage phase 3 - 39th harmonic (rms)","unsigned integer",1,"mV",null,"See Note 3",{"$f":"3","v":3}]
[29903,29902,"74CE",2,null,"Voltage phase 3 - 40th harmonic (rms)","unsigned integer",1,"mV",null,"See Note 3",{"$f":"3","v":3}]
[29905,29904,"74D0",2,null,"Voltage phase 3 - 41st harmonic (rms)","unsigned integer",1,"mV",null,"See Note 3",{"$f":"3","v":3}]
[29907,29906,"74D2",2,null,"Voltage phase 3 - 42nd harmonic (rms)","unsigned integer",1,"mV",null,"See Note 3",{"$f":"3","v":3}]
[29909,29908,"74D4",2,null,"Voltage phase 3 - 43rd harmonic (rms)","unsigned integer",1,"mV",null,"See Note 3",{"$f":"3","v":3}]
[29911,29910,"74D6",2,null,"Voltage phase 3 - 44th harmonic (rms)","unsigned integer",1,"mV",null,"See Note 3",{"$f":"3","v":3}]
[29913,29912,"74D8",2,null,"Voltage phase 3 - 45th harmonic (rms)","unsigned integer",1,"mV",null,"See Note 3",{"$f":"3","v":3}]
[29915,29914,"74DA",2,null,"Voltage phase 3 - 46th harmonic (rms)","unsigned integer",1,"mV",null,"See Note 3",{"$f":"3","v":3}]
[29917,29916,"74DC",2,null,"Voltage phase 3 - 47th harmonic (rms)","unsigned integer",1,"mV",null,"See Note 3",{"$f":"3","v":3}]
[29919,29918,"74DE",2,null,"Voltage phase 3 - 48th harmonic (rms)","unsigned integer",1,"mV",null,"See Note 3",{"$f":"3","v":3}]
[29921,29920,"74E0",2,null,"Voltage phase 3 - 49th harmonic (rms)","unsigned integer",1,"mV",null,"See Note 3",{"$f":"3","v":3}]
[29923,29922,"74E2",2,null,"Voltage phase 3 - 50th harmonic (rms)","unsigned integer",1,"mV",null,"See Note 3",{"$f":"3","v":3}]
[]
[]
[null,"Note 1 - Powers scale"]
[null,"Scale","Unit","Condition"]
[null,0.01,"W, var, VA","CTxVT<5.000"]
[null,1,"W, var, VA","CTxVT ≥ 5.000"]
[null,"Energies scale"]
[null,"Scale","Unit","Condition"]
[null,"1.000.000","Wh, varh","100.000 ≤ CTxVT < 1.000.000"]
[null,"100.000","Wh, varh","10.000 ≤ CTxVT < 100.000"]
[null,"10.000","Wh, varh","1.000 ≤ CTxVT < 10.000"]
[null,"1.000","Wh, varh","100 ≤ CTxVT < 1.000"]
[null,100,"Wh, varh","10 ≤ CTxVT < 100"]
[null,10,"Wh, varh","1 ≤ CTxVT < 10"]
[]
[null,"Note 3 - VOLTAGE THD, HARMONICS AND STATISTICS"]
[null,"Network Type"]
[null,"With Neutral",null,"data related to phase voltages"]
[null,"Without Neutral",null,"data related to chained voltages"]
[]
[null,"Note 4 - OUTPUT RELAY STATUS"]
[null,"The answer is in the following format : FF 03 02 b3|b2|b1|b0\n\nwhere:\nBit 0: Output 1\nBit 1: Output 2\nBit 2: Output 3\nBit 3: Output 4\n\nExample: answer 0003h -> 0011b -> Outputs 1 and 2 activated on alarm or command\n"]
[]
[null,"Note 5 - ADD-ON MODULES INSTALLED"]
[null,"The answer is in the following format : FF 03 04 B3 B2 | B1 B0\n\nwhere:\nB0: Slot A\nB1: Slot B\nB2: Slot C\nB3: Slot D\n\nExample: answer FF 03 04 2D 2D 48 41\n\nSlot A: RS485 Module\nSlot B: Harmonics Hanalysys Module\nSlot C: No Module\nSlot D: No Module\n\nLegend:\n2Dh: No Module\n41h: RS485 Module\n46h: I/O Module\n48h: Harmonics Hanalisys Module\n4Dh: Memory + RS485 Module\n62h: Pulse Outputs Module\n64h: Analog Output Module\n68h: Temperature Module"]
[]
[null,"Note 6 - Request of integrated data (energy and average power)"]
[null,"To read energy sored Data:\n1) Send a write modbus command to the Memory Module that sets the  date from wich user wants the stored data :\n   FF 10 5500 0006 0C 00DD 00MM 00YY 00hh 00mm 00ss\n2) Request the data with a read modbus  command “give (next) data”\n   FF 03 5000 0001\nAfter this command the module send to the master 8 blocks of data stored with  the format:\n\nExample:\nRequest:FF 03 5000 00F0"]
[null,"Answer: FF 03 F0\n18 06 09\n13 50 00\n0001  D588\n0002 BE58\n0003 5AFC\n0000 0184\n0000 031D\n0000 04AF",null,"\n Data of current record  n\nTime of current record  n\n Active Positive Energy\nActive Negative Energy\nReactive Positive Energy\nReactive Negative Energy\nAverage Power\nMaximum Power Demand"]
[null,"…"]
[null,"18 06 09\n15 20 00\n0001  D588\n0002 BE58\n0003 5AFC\n0000 0184\n0000 031D\n0000 04AF",null," Data of current record  n+7\nTime of current record  n+7\n Active Positive Energy\nActive Negative Energy\nReactive Positive Energy\nReactive Negative Energy\nAverage Power\nMaximum Power Demand"]
[null,"Note: The user may repeat the command “give (next) data” until receive an exception error that means no more data.\nAfter the exception error, new request have to start to the first point in this paragraph"]
[]
[null,"Note 7 - Request of real time data"]
[null,"To read energy sored Data:\n1) Send a write modbus command to the Memory Module that sets the  date from wich user wants the stored data :\n   FF 10 5500 0006 0C 00DD 00MM 00YY 00hh 00mm 00ss\n2) Request the data with a read modbus  command “give (next) data”\n   FF 03 5010 0001\nAfter the reading command the module will send to the master the data stored and the format depend on the type of data recorded (TYPE0, TYPE1, TYPE2, TYPE3):\n\nExample:\nRequest:FF 03 5010 00E01"]
[null,"Answer: FF 03 E4\n18 06 09\n13 50 00\n[….]",null,"\n Data of current record  n\nTime of current record  n\nReal time data according to the type"]
[null,"…"]
[null,"18 06 09\n13 50 02\n[...]",null," Data of current record  n+1\nTime of current record  n+1"]
[null,"Example for TYPE0 Data"]
[null,"# WORD","Description",null,null,"Unit"]
[null,2," Phase 1 : phase voltage ",null,null," mV"]
[null,2," Phase 2 : phase voltage",null,null," mV"]
[null,2," Phase 3 : phase voltage",null,null," mV"]
[null,2," Phase 1 : current",null,null," mA"]
[null,2," Phase 2 : current",null,null," mA"]
[null,2," Phase 3 : current",null,null," mA"]
[null,2," Neutral current",null,null," mA"]
[null,2," Chained voltage : L1-L2",null,null," mV"]
[null,2," Chained voltage : L2-L3",null,null," mV"]
[null,2," Chained voltage : L3-L1",null,null," mV"]
[null,2," 3-phase : active power",null,null,"See Note 1"]
[null,2," 3-phase : reactive power",null,null,"See Note 1"]
[null,2," 3-phase : apparent power",null,null,"See Note 1"]
[null,1," 3-phase : power factor",null,null," 1/100"]
[null,1," 3-phase : sector of power factor (cap or ind)",null,null," 1 : ind\n 2 : cap"]
[null,1," Frequency ",null,null," Hz/10"]
[null,2," Phase 1 : active power ",null,null,"See Note 1"]
[null,2," Phase 2 : active power",null,null,"See Note 1"]
[null,2," Phase 3 : active power",null,null,"See Note 1"]
[null,2," Phase 1 : reactive power ",null,null,"See Note 1"]
[null,2," Phase 2 : reactive power",null,null,"See Note 1"]
[null,2," Phase 3 : reactive power",null,null,"See Note 1"]
[null,1," Phase 1 : power factor",null,null," 1/100"]
[null,1," Phase 2 : power factor",null,null," 1/100"]
[null,1," Phase 3 : power factor",null,null," 1/100"]
[null,1," Phase 1 : power factor sector",null,null," 1 : ind\n 2 : cap"]
[null,1," Phase 2 : power factor sector",null,null," 1 : ind\n 2 : cap"]
[null,1," Phase 3 : power factor sector",null,null," 1 : ind\n 2 : cap"]
[null,1," Phase 1 : THD V1",null,null,"%"]
[null,1," Phase 2 : THD V2",null,null," %"]
[null,1," Phase 3 : THD V3",null,null," %"]
[null,1," Phase 1 : THD I1",null,null," %"]
[null,1," Phase 2 : THD I2",null,null," %"]
[null,1," Phase 3 : THD I3",null,null," %"]
[null,1," Output relay status",null,null,"-"]
[null,"For TYPE 1 ÷ 3 saved data refer ti the user manual"]

{"sheet":"HOLDING REGISTERS - Words (R&W)","index":4,"n_rows":114,"n_cols":14,"rows_kept":114,"cut":false,"hidden":false,"merged":[[109,1,109,8],[95,1,95,8],[96,1,96,8],[97,1,97,4],[97,6,97,8],[105,1,105,8],[106,1,106,8],[107,1,107,8],[108,1,108,8],[101,1,101,8],[102,1,102,8],[103,1,103,8],[104,1,104,8],[98,1,98,8],[99,1,99,8],[100,1,100,8],[93,1,93,8],[94,1,94,4],[94,6,94,8],[89,1,89,8],[90,1,90,8],[91,1,91,8],[92,1,92,8],[60,1,60,8],[61,1,61,4],[61,6,61,8],[59,1,59,8],[62,1,62,8],[56,6,56,8],[58,1,58,4],[58,6,58,8],[57,1,57,4],[57,6,57,8],[42,1,42,8],[44,1,44,4],[44,6,44,8],[46,1,46,4],[46,6,46,8],[45,1,45,4],[45,6,45,8],[43,1,43,8],[87,1,87,8],[47,1,47,8],[48,1,48,8],[49,6,49,8],[49,1,49,4],[54,1,54,8],[53,1,53,8],[50,1,50,4],[50,6,50,8],[51,1,51,4],[51,6,51,8],[52,1,52,4],[52,6,52,8],[55,1,55,4],[55,6,55,8],[56,1,56,4],[66,1,66,8],[64,1,64,8],[63,1,63,8],[65,1,65,8],[67,1,67,8],[70,1,70,8],[69,1,69,8],[68,1,68,8],[76,1,76,8],[75,1,75,8],[74,1,74,8],[73,1,73,8],[72,1,72,8],[110,1,110,8],[111,1,111,8],[112,1,112,8],[113,1,113,8],[71,1,71,8],[88,1,88,8],[77,1,77,8],[81,1,81,8],[80,1,80,8],[79,1,79,8],[78,1,78,8],[82,1,82,8],[85,1,85,8],[84,1,84,8],[83,1,83,8],[86,1,86,8]]}
["Register Number","Register Address (Dec)","Register Address (Hex)","Dimension [word]","Bit Position","Description","Type","Scale","Unit","Range","Note","Read Function Codes (Dec)","Write Function Codes (Hex)","Data Storing (2)"]
[{"$f":"B2+1","v":257},{"$f":"HEX2DEC(C2)","v":256},100,{"$f":"SUM(D3:D4)","v":2},null,"Current & Voltage Transf. Ratio"]
[257,256,{"$f":"DEC2HEX(B3)","v":"100"},1,null,"Write Current transformer ratio - CT","unsigned integer",1,"-","1 ÷ 9999","CT = I prim / I sec\nex: 500 A / 5 A ® CT = 100 ",3,10]
[259,258,{"$f":"DEC2HEX(B4)","v":"102"},1,null,"Write Voltage transformer ratio - VT","unsigned integer",0.01,"-","100 ÷ 1000","VT = V prim / V sec\nex: 600 V /100 V\nVT = 6.00 ® WRITE 600\n---\nIf tranformer not present\nVT = 1.00 ® WRITE 100",3,10]
[1297,{"$f":"GENERAL!A6","v":1296},{"$f":"GENERAL!B6","v":510},{"$f":"SUM(D6:D6)","v":1},null,{"$f":"GENERAL!E6","v":"Reset of one Pulse Couter"}]
[1297,1296,{"$f":"DEC2HEX(B6)","v":"510"},1,null,"Reset of one Pulse Couter","unsigned integer","-","-","-","See Note 6",3,10]
[4208,{"$f":"GENERAL!A8","v":4207},{"$f":"GENERAL!B8","v":"106f"},{"$f":"SUM(D8:D23)","v":184},null,{"$f":"GENERAL!E8","v":"Open / Close a relays of I/O Module"}]
[4208,4207,{"$f":"DEC2HEX(B8)","v":"106F"},1,null,"Output status ","unsigned integer","-","-","-","See Note 15",3,10]
[{"$f":"B9+1","v":8193},{"$f":"GENERAL!A14","v":8192},{"$f":"GENERAL!B14","v":2000},{"$f":"SUM(D10:D10)","v":16},null,{"$f":"GENERAL!E14","v":"Standard Setup parameters (read & write 16 byte at once)"}]
[8193,8192,{"$f":"DEC2HEX(B10)","v":"2000"},16,null,"Standard Setup Parameters","unsigned integer","-","-","-","See Note 1",3,10]
[{"$f":"B11+1","v":8449},{"$f":"GENERAL!A15","v":8448},{"$f":"GENERAL!B15","v":2100},{"$f":"SUM(D12:D12)","v":24},null,{"$f":"GENERAL!E15","v":"Programming Parameters of Module on Slot B"}]
[8449,8448,{"$f":"DEC2HEX(B12)","v":"2100"},24,null,"Programming parameters of Module on Slot B","unsigned integer","-","-","-","See Note 2",3,10]
[8705,{"$f":"GENERAL!A16","v":8704},{"$f":"GENERAL!B16","v":2200},{"$f":"SUM(D14:D14)","v":24},null,{"$f":"GENERAL!E16","v":"Programming Parameters of Module on Slot C"}]
[{"$f":"B14+1","v":8705},8704,{"$f":"DEC2HEX(B14)","v":"2200"},24,null,"Programming parameters of Module on Slot C","unsigned integer","-","-","-","See Note 2",3,10]
[8961,{"$f":"GENERAL!A17","v":8960},{"$f":"GENERAL!B17","v":2300},{"$f":"SUM(D16:D16)","v":24},null,{"$f":"GENERAL!E17","v":"Programming Parameters of Module on Slot D"}]
[{"$f":"B16+1","v":8961},8960,{"$f":"DEC2HEX(B16)","v":"2300"},24,null,"Programming parameters of Module on Slot D","unsigned integer","-","-","-","See Note 2",3,10]
[9217,{"$f":"HEX2DEC(C17)","v":9216},2400,{"$f":"SUM(D18:D18)","v":1},null,"Reset parameters"]
[9217,9216,{"$f":"DEC2HEX(B18)","v":"2400"},1,null,"Reset Hour Meter, Maximum Powers, Maximum Voltages, Maximum Currents, Minimum Voltages, Active Partial Energy, Reactive Partial Energy","unsigned integer","-","-","-","See Note 3",3,10]
[{"$f":"B19+1","v":9729},{"$f":"HEX2DEC(C19)","v":9728},2600,{"$f":"SUM(D20:D20)","v":1},null,"Saving parameters"]
[9729,9728,{"$f":"DEC2HEX(B20)","v":"2600"},1,null,"Saving in EEPROM parameters changed by Remote commands","unsigned integer","-","-","-","See Note 4",3,10]
[{"$f":"B21+1","v":9985},{"$f":"HEX2DEC(C21)","v":9984},2700,{"$f":"SUM(D22:D22)","v":1},null,"Enable writing"]
[9985,9984,{"$f":"DEC2HEX(B22)","v":"2700"},1,null,"Enable Remote Writing Operation","unsigned integer","-","-","-","See Note 4 & Note 5",3,10]
[{"$f":"B23+1","v":10241},{"$f":"HEX2DEC(C23)","v":10240},2800,{"$f":"SUM(D24:D24)","v":1},null,"Restore default parameters"]
[10241,10240,{"$f":"DEC2HEX(B24)","v":"2800"},1,null,"Restore default parameters","unsigned integer","-","-","-","See  Note 5",3,10]
[{"$f":"B25+1","v":12545},{"$f":"GENERAL!A18","v":12544},{"$f":"GENERAL!B18","v":3100},{"$f":"SUM(D26:D26)","v":1},null,{"$f":"GENERAL!E18","v":"Set Relay on LOCAL or REMOTE control"}]
[12545,12544,{"$f":"DEC2HEX(B26)","v":"3100"},1,null,"Set Relay on LOCAL or REMOTE control","unsigned integer","-","-","-","See Note 7",3,10]
[12801,{"$f":"GENERAL!A19","v":12800},{"$f":"GENERAL!B19","v":3200},{"$f":"SUM(D28:D28)","v":1},null,{"$f":"GENERAL!E19","v":"Open / Close a relays of I/O Module"}]
[12801,12800,{"$f":"DEC2HEX(B28)","v":"3200"},1,null,"Open / Close a relays of I/O Module","unsigned integer","-","-","-","See Note 8",3,10]
[{"$f":"B29+1","v":14081},{"$f":"GENERAL!A20","v":14080},{"$f":"GENERAL!B20","v":3700},{"$f":"SUM(D30:D30)","v":1},null,{"$f":"GENERAL!E20","v":"Real time data: bit mapped variable reading/writing"}]
[14081,14080,{"$f":"DEC2HEX(B30)","v":"3700"},1,null,"Real time data selection","unsigned integer","-","-","-","See Note 16",3,10]
[{"$f":"B31+1","v":20769},{"$f":"GENERAL!A23","v":20768},{"$f":"GENERAL!B23","v":5120},{"$f":"SUM(D32:D40)","v":74},null,{"$f":"GENERAL!E23","v":"Stored data"}]
[{"$f":"B32+1","v":20769},20768,{"$f":"DEC2HEX(B32)","v":"5120"},6,null,"Current date and time","unsigned integer","-","-","-","See Note 9",3,10]
[20801,20800,"5140",2,null,"Saving interval period and record data type","unsigned integer","-","-","-","See Note 10",3,10]
[{"$f":"B34+1","v":20803},20802,"5142",2,null,"Saving energy data interval","unsigned integer","-","-","-","See Note 11",null,10]
[{"$f":"B35+1","v":21761},21760,"5500",12,null,"Initial date and time for energy data reading","unsigned integer","-","-","-","See Note 9",3,10]
[{"$f":"B36+1","v":21777},21776,"5510",12,null,"Date and time for start of Daylight Saving Time period","unsigned integer","-","-","-","See Note 12",3,10]
[{"$f":"B37+1","v":21793},21792,"5520",12,null,"Date and time for end of Daylight Saving Time period","unsigned integer","-","-","-","See Note 12",3,10]
[{"$f":"B38+1","v":23041},23040,"5A00",12,null,"Initial date  and time for real time data","unsigned integer","-","-","-","See Note 9",3,10]
[{"$f":"B39+1","v":23297},23296,"5B00",8,null,"Reset all energy data memory","unsigned integer","-","-","-","See Note 13",3,10]
[{"$f":"B40+1","v":23553},23552,"5C00",8,null,"Reset all real time data memory","unsigned integer","-","-","-","See Note 14 ",3,10]
[]
[]
[null,"Note 1 - Standard Setup Parameters"]
[null,"Readable / Writable in a 16 WORDS format :\n\nTX: FF 03 20 00 00 10\nRX: FF 03 20 | 00 00 | 00 05 | 00 00 | 00 03 | 00 0A | 00 00 | 00 00 | 00 00 | 00 01 | 00 01 | 00 03 | 00 05 | 00 03 | 00 02 | 00 01 | 00 00\nThe answer is in the following format :\n\nFF 03 20 W0 W1 W2 W3 W4 W5 W6 W7 W8 W9 W10 W11 W12 W13 W14 W15\n\nThe meaning of the WORDs is the following: W0,W1,W2,W3,W4,W5 and W15: no meaning"]
[null,"W14 : Measure on line 1 of custom page\n0: V phase 1\n1: V12\n2: I phase 1\n3: I Neutral\n4: P 3-phase\n5: Q 3-phase\n6: S 3-phase\n7: P phase 1\n8: Q phase 1\n9: S phase 1\n10: PF 3-phase",null,null,null,"W13 : Measure on line 2 of custom page\n0: V phase 2\n1: V23\n2: I phase 2\n3: P 3-phase\n4: Q 3-phase\n5: S 3-phase\n6: P phase 2\n7: Q phase 2\n8: S phase 2\n9: Frequency\n10: I phase 1","W12 : Measure on line 3 of custom page\n0 => V phase 3\n1 => V31\n2 => I phase 3\n3 => P 3-phase\n4 => Q 3-phase\n5 => S 3-phase\n6 => P phase 3\n7 => Q phase 3\n8 => S phase 3\n9 => P phase 1\n10 => I phase 1"]
[null,"W11 : Insertion type\n0: 3N3E\n1: 3-3E\n2: 3-2E\n3: 1N1E\n4: 3N1E\n5: 3-1E\n\n",null,null,null,"W10 : Average and Max. demand calculation time\n0: 5 minutes\n1: 8 minutes\n2: 10 minutes\n3: 15 minutes\n4: 20 minutes\n5: 30 minutes\n6: 60 minutes","W9 : Display contrast\n0: level 0\n1: level 1\n2: level 2\n3: level 3"]
[null,"W8 : Backlight intensity\n0: 0%\n1: 30%\n2: 70%\n3: 100%",null,null,null,"W7 : Rated TA current\n0: 5A\n1: 1A\n"]
[null,"Note 2 - Programming parameters of Add-on Modules"]
[null,"· Analogue Output Module\nReadable / Writable in a 24 WORDS format - the answer is in the following format:\n\nW0 W1 W2 W3 | W4 W5 W6 W7 W8 W9 W10 W11 W12 W13 | W14 W15 W16 W17 W18 W19 W20 W21 W22 W23\n\nThe meaning of the WORDs is the following:\nW14 to W23 for OUT 1\nW4 to W13 for OUT 2\nW0,W1,W2 and W3: no meaning"]
[null,"W23 & W13: Output range\n0: 4÷20 mA\n1: 0÷20 mA",null,null,null,"W22 & W12: Associated quantity\n0: V phase 1\n1: V phase 2\n2: V phase 3\n3: I phase 1\n4: I phase 2\n5: I phase 3\n6: V12\n7: V23\n8: V31\n9: P phase 1\n10: P phase 2\n11: P phase 3 \n12: Q phase 1\n13: Q phase 2\n14: Q phase 3\n15: P 3-phase\n16: Q 3-phase\n17: PF 3-phase\n18: Frequency\n19: Active Power PMD\n20: Reactive Power PMD\n21: Current PMD\n22: Temperature Ch1\n23: Temperature Ch2","W21 & W11: Sign for Begin scale (only for Powers)\n0: positive\n1: negative"]
[null,"W20 & W10: Deimal point position\n0: X.XXX\n1: XX.XX\n2: XXX.X",null,null,null,"W19 & W9: Measuring Unit\n0: k (for Powers), Inductive (for PF), V (for volatges), A (for currents), Hz (for Frequency)\n1: M (for Powers), Capacitive (for PF), kV (for volatges), kA (for currents), Hz (for Frequency)","W18 & W8 Starting Value\n0 to 9999\n"]
[null,"W17 & W7: Sign for Ending scale (only for Powers)\n0: positive\n1: negative",null,null,null,"W16 & W6: Deimal point position\n0: X.XXX\n1: XX.XX\n2: XXX.X","W15 & W5 Measuring Unit\n0: k (for Powers), Inductive (for PF), V (for volatges), A (for currents), Hz (for Frequency)\n1: M (for Powers), Capacitive (for PF), kV (for volatges), kA (for currents), Hz (for Frequency)\n"]
[null,"W14 & W4: Ending Value\n0 to 9999"]
[]
[null,"· I/O Module\nReadable / Writable in a 24 WORDS format - the answer is in the following format:\n\nW0 W1 W2 W3 | W4 W5 W6 W7 W8 W9 W10 W11 W12 W13 | W14 W15 W16 W17 W18 W19 W20 W21 W22 W23\n\nThe meaning of the WORDs is the following:\nW14 to W23 for ALARM OUT 1\nW4 to W13 for ALARM OUT 2\nW0,W1,W2 and W3: no meaning"]
[null,"W23 & W13: Associated quantity\n0: V phase 1\n1: V phase 2\n2: V phase 3\n3: I phase 1\n4: I phase 2\n5: I phase 3\n6: V12\n7: V23\n8: V31\n9: P phase 1\n10: P phase 2\n11: P phase 3 \n12: Q phase 1\n13: Q phase 2\n14: Q phase 3\n15: P 3-phase\n16: Q 3-phase\n17: PF 3-phase\n18: Frequency\n19: Active Power PMD\n20: Reactive Power PMD\n21: Current PMD\n22: Temperature Ch1\n23: Temperature Ch2",null,null,null,"W22 & W12: Sign for Begin scale (for Powers and Temperatures)\n0: positive\n1: negative","W21 & W11: Deimal point position\n0: X.XXX\n1: XX.XX\n2: XXX.X"]
[null,"W20 & W10: Measuring Unit\n0: k (for Powers), Inductive (for PF), V (for volatges), A (for currents), Hz (for Frequency)\n1: M (for Powers), Capacitive (for PF), kV (for volatges), kA (for currents), Hz (for Frequency)",null,null,null,"W19 & W9: Alarm setpoint\n0 to 9999","W18 & W8 Alarm on\n0: Lower than set point\n1: Higher than set point"]
[null,"W17 & W7: Relay Status\n0: Normally Open - NO\n1: Normally Close - NC",null,null,null,"W16 & W6: Hysteresis\n0÷10: 0% ÷ 10%\n11: 15%\n12: 20%","W15 & W5: Alarm activation delay\n0 - 99 s"]
[null,"W14 & W4: Alarm deactivation delay\n0 - 99 s"]
[]
[null,"· Pulse output Module\nReadable / Writable in a 24 WORDS format - the answer is in the following format:\n\nW0 W1 W2 W3 W4 W5 W6 W7 W8 W9 W10 W11 W12 W13 W14 W15 W16 W17 | W18 W19 W20 | W21 W22 W23\n\nThe meaning of the WORDs is the following:\nW21 to W23 for PULSE OUT 1\nW18 to W20 for PULSE OUT 2\nW0 to W17: no meaning"]
[null,"W23 & W20: Pulse active on\n0: Active Energy\n1: Reactive Energy",null,null,null,"W22 & W19: Pulse weight\n0: 0.01 kWh\n1: 0.10 kWh\n2: 1.00 kWh\n3: 10.0 kWh\n4: 0.10 MWh\n5: 1.00 MWh\n6: 10.0 MWh","W21 & W18: Pulse duration\n0: 50 ms\n1: 100 ms\n2: 200 ms\n3: 300 ms\n4: 400 ms\n5: 500ms"]
[]
[null,"Note 3 - Reset Parameters"]
[null,"To reset desired measurements write the following word (in binary): 0|0|0|0|0|0|0|0|b8|b7|b6|b5|b4|b3|b2|b1|b0  \n \nb0          = 1  =>  Reset Hour Meter\nb1          = 1  =>  Reset Peak Maximum Demand\nb2          = 1  =>  Reset Maximum Voltage values    \nb3          = 1  =>  Reset Maximum Current values\nb4          = 1  =>  Reset Minimum Voltage values\nb5          = 1  =>  Reset Active Partial Energy\nb6          = 1  =>  Reset Reactive Partial Energy\nb7          = 1  =>  Reset Counter Input 1 ( Sw > 1.02 )\nb8          = 1  =>  Reset Counter Input 2 ( Sw > 1.02 )\nb9 ÷ b15 = 0"]
[]
[null,"Note 4 - Configuration Procedure"]
[null,"1) \"Master Unlock Key”  command (write the value = 0x5AA5 in the register 0x2700)"]
[null,"2) Write the new Configuration (one or more registers...)"]
[null,"3) \"Master Unlock Key”  command (write the value = 0x5AA5 in the register 0x2700)"]
[null,"4) Save/Confirm the new Configuration (writing the value 0x000A in the register 0x2600)"]
[null,"5) The new Configuration is now available"]
[]
[null,"Note 5 - Restore default parameters"]
[null,"1) \"Master Unlock Key”  command (write the value = 0x5AA5 in the register 0x2700)"]
[null,"2) Return to the Default configuration (writing the value 0x000B in the register 0x2800)"]
[null,"3) The Default configuration has been restored"]
[]
[null,"Note 6 - Reset of one Pulse Couter"]
[null,"1) \"Master Unlock Key”  command (write the value = 0x5AA5 in the register 0x2700)"]
[null,"2) Write the command (one for each pulse input counter):\nFF 10 0510 0001 02 W0\nwhere W0:\n0010 to reset Pulse Counter 1 on Slot C\n0001 to reset Pulse Counter 2 on Slot C\n1000 to reset Pulse Counter 1 on Slot D\n0100 to reset Pulse Counter 2 on Slot D\n"]
[]
[null,"Note 7 - Set Relay on LOCAL or REMOTE control"]
[null,"1) \"Master Unlock Key”  command (write the value = 0x5AA5 in the register 0x2700)"]
[null,"2) Write the command:\nFF 10 3100 0001 02 W0\nwhere W0:\n00AA to set Relays on Slot C remotely controlled\n00FF to set Relays on Slot C locallyy controlled\nAA00 to set Relays on Slot D remotely controlled\nFF00 to set Relays on Slot D locally controlled\n\nNOTE: after this writingthe device resets itself and if relays REMOTE managing is active in the visualization page of alarms state, on the fourth line, a letter “r” appears: eg. ALM1 6-7 r"]
[]
[null,"Note 8 - Open / Close a relays of I/O Module"]
[null,"1) \"Master Unlock Key”  command (write the value = 0x5AA5 in the register 0x2700)"]
[null,"2) Write the command:\nFF 10 3200 0001 02 W0\nwhere W0:\nFF88 RELAY 1 OPEN | RELAY 2 OPEN on Slot C\nFF98 RELAY 1 CLOSE | RELAY 2 OPEN on Slot C\nFF89 RELAY 1 OPEN | RELAY 2 CLOSE on Slot C\nFF99 RELAY 1 CLOSE | RELAY 2 CLOSE on Slot C\n\n88FF RELAY 1 OPEN | RELAY 2 OPEN on Slot D\n98FF RELAY 1 CLOSE | RELAY 2 OPEN on Slot D\n89FF RELAY 1 OPEN | RELAY 2 CLOSE on Slot D\n99FF RELAY 1 CLOSE | RELAY 2 CLOSE on Slot D"]
[]
[null,"Note 9 - Current date and time - Initial date and time for energy data reading - Initial date and time for real time data"]
[null,"1) Write the command:\nexample the date 17 of june 2009 and the time 12:11:47\nFF 10 5120 0006 0C 0017 0006 0009 0012 0011 0047"]
[]
[null,"Note 10 - Saving real time data interval and packet data type"]
[null,"1) Write the command:\nFF 10 5140 0002 04 W0 W1\nwhere W0:\n0000 to set saving time as 2 sec.\n0001 to set saving time as 5 sec.\n0002 to set saving time as 10 sec.\n0003 to set saving time as 30 sec.\n0004 to set saving time as 60 sec.\n0005 to set saving time as 2 min.\n0006 to set saving time as 5 min.\n0007 to set saving time as 10 min.\n",null,null,null,"\n\nwhere W1:\n0000 to set Type 0\n0001 to set Type 1\n0002 to set Type 2\n0003 to set Type 3\n0004 to set Type 4\n","Note:\n- Writing a new value for data record type has the effect to erase the real time data memory.\n\n- Writing a new value for saving interval time period has no effect on the stored data that have been already saved in the memory.\n"]
[]
[null,"Note 11 - Saving energy data interval"]
[null,"1) Write the command:\nFF 10 5142 0001 02 W0\nwhere W0:\n0000 to set saving time as 5 min.\n0001 to set saving time as 10 min.\n0002 to set saving time as 15 min.\n\n"]
[]
[null,"Note 12 - Daylight Saving Time"]
[null,"1) STARTING DATE & HOUR - Write the command:\nexample the date 29 of march 2015 and the time 02:00:00\nFF 10 5120 0006 0C 0029 0003 0015 0002 0000 0000\n\n2) ENDING DATE & HOUR - Write the command:\nexample the date 25 of october 2015 and the time 03:00:00\nFF 10 5120 0006 0C 0025 0010 0015 0003 0000 0000"]
[]
[null,"Note 13 - Reset all energy data memory"]
[null,"1) Write the command:\nFF 10 5B00 0004 08 5265 7365 744D 656D "]
[]
[null,"Note 14 - Reset all real time data memory"]
[null,"1) Write the command:\nFF 10 5C00 0004 08 5265 7365 7444 6164 "]
[]
[null,"Note 15 - Open / Close a relays of I/O Module"]
[null,"This command is available only if are selected the mode rMtb or rMtt for the output relay of I/O Module(s):\n1) write: FF 10 106F 0001 02 W0\n\nTo close the desired relay write the following word (in binary): b3|b2|b1|b0  \n \n0001 => Close relay 1\n0010 => Close relay 2\n0100 => Close relay 3    \n1000 => Close relay 4"]
[]
[null,"Note 16 - Real time data: bit mapped variable reading"]
[null,"For Data Type 0, 1, 2, 3 there is a fixed format; Data Type 4 has a variable format for data. This means that in the case of Data Type 4 user can choose which variable to save\nTO READ THE CONFIGURATION\n1) write: FF 03 3700 0005\n    answer: FF 03 0A W0 W1 W2 W3 W4\n\nTo know which variables are saved, write the words in binary. The signifactive bits are from b34 to b0. Example\nThe meaning of bits is the following:\n\nb79...b35 no meaning\n\nb34 relay status | b33 THD I3 | b32 THD I2\n\nb31 THD I1 | b30 THD V3 | b29 THD V2 | b28 THD V1 | b27 PF3 sect | b26 PF2 sect | b25 PF1 sect | b24 PF3\n\nb23 PF2 | b22 PF1 | b21 Q3 | b20 Q2 | b19 Q1 | b18 P3 | b17 P2 | b16 P1\n\nb15 Freq | b14 Pf sect | b13 PF | b12 S | b11 Q | b10 P | b9 31 | b8 V23  \n\nb7 V12 | b6 In | b5 I3 | b4 I2 | b3 I1 | b2 V3 | b1 V2 | b0 V1\n\nExample:\nRequest:        FF 03 3700 00 05\nAnswer (h):    FF 03 0A 0000 0000 0005 5555 5555\nAnswer (b): 00000000  00000000  00000000  00000000  00000000  00000101  01010101  01010101  01010101  01010101\n                                                                                                         b34                                                               b0\nAny record is composed as in the following: \n\nb34 Relay status | b32 THD I2 | b30 THD V3 | b28 THD V1 | b26 PF2 sect | b24 PF3 | b22 PF1 | b20 Q2 | b18 P3 | b16 P1 | b14 PF sect | b12 S | b10 P | b8  V23 | \nb6  In | b4  I2  | b2  V3 | b0  V1"]
[null,"TO WRITE THE CONFIGURATION\n1) \"Master Unlock Key”  command (write the value = 0x5AA5 in the register 0x2700)\n2) Write the command:\nFF 10 3700 0005 0A W0 W1 W2 W3 W4 W5\n\nWhere:\nW0: 00000000 b7 | b6 | b5 | b4 | b3 | b2 | b1 | b0\nW1: 00000000 b15 | b14 | b13 | b12 | b11 | b10 | b9 | b8\nW2: 00000000 b23 | b22 | b21 | b20 | b19 | b18 | b17 | b16\nW3: 00000000 b31 b30 b29 b28 b27 b26 b25 b24\nW4: 00000000 0000 | b34 | b33 | b32\n\nExample:\nRequest 1: FF 10 2700 0001 02 5AA5\nAnswer 1:  FF 10 2700 0001\n\nRequest 2 (h): FF 10 3700 0005 0A 0055 0055 0055 0055 0005\nAnswer2       : FF 10 3700  0001\n\nRequest 2 (b): 00000000  00000000  00000000  00000000  00000000  00000101  01010101  01010101  01010101  01010101\n                                                                                                         b34                                                               b0\nAny record is composed as in the following: \n\nb34 Relay status | b32 THD I2 | b30 THD V3 | b28 THD V1 | b26 PF2 sect | b24 PF3 | b22 PF1 | b20 Q2 | b18 P3 | b16 P1 | b14 PF sect | b12 S | b10 P | b8  V23 | \nb6  In | b4  I2  | b2  V3 | b0  V1"]